{"text_format":"1","workbook":"xlsx","n_sheets":6,"sheets":["Инструкция","Свод_отрасли","Свод","МСП","Диаграмма все мсп","Районы"],"not_rendered":{"charts":2,"images":30,"macros":1,"external_links":0,"defined_names":3,"comments":1,"pivot_tables":0},"unopened":[],"bounds":{"document_bytes":16777216,"sheet_cells":100000,"rows_first":2000,"rows_last":500,"rows_between":2000,"halvings":0,"cell_chars":16384,"cell_head_chars":4096},"cells_cut":0,"cells_raw":0,"read":"whole","date_system":"1900"}

{"sheet":"Инструкция","index":0,"n_rows":5,"n_cols":1,"rows_kept":5,"cut":false,"hidden":true,"merged":[]}
["1. Визуализатор предназначен для графической агрегации информационного массива данных по малым и средним хозяйствующим субъектам муниципального образования (далее МСП)"]
["2. Визуализатор ивключает в себя три вкладки (листа):"]
[" - вкладка \"МСП\" предназначена для ввода входящих данных по МСП, пользователь заполняет только те графы, текст в которых окрашен в красный цвет, графы имеющие цвет текста черный - заполняются автоматически;"]
[" - вкладка \"Свод_отрасли\" формирует визуальный агрегатор информации в виде диаграммы  по МСП в разрезе отраслей, отрасли, в графе \"вид отрасли\" пользователь выбирает из списка (формируется автоматически). Формирование перечня отраслей осуществляется в соответствии с фактически существующими в МО отраслями экономики;"]
[" - вкладка \"Свод\" формирует визуальный агрегатор информации в виде диаграммы  по МСП"]

{"sheet":"Свод_отрасли","index":1,"n_rows":16,"n_cols":5,"rows_kept":16,"cut":false,"hidden":false,"merged":[]}
[null,null,null,null,"Выберите наименование муниципального образования"]
["Выберите вид отрасли","Среднесписочная численность работников в МСП по отрасли, человек","Выработка на 1 работника в среднем по отрасли, тыс. рублей","Налоговые поступления на 1 работника в среднем по отрасли, тыс. рублей","Налоговая нагрузка в среднем по отрасли, процентов"]
["Сельское хозяйство",{"$f":"IF(A3=\"\",\"\",SUMIF(МСП!$H$3:$H$50001,A3,МСП!$D$3:$D$50001))","v":126},{"$f":"IF(A3=\"\",\"\",SUMIF(МСП!$H$3:$H$50001,A3,МСП!$F$3:$F$50001)/COUNTIF(МСП!$H$3:$H$50001,A3))","v":39.624881291547958},{"$f":"IF(A3=\"\",\"\",SUMIF(МСП!$H$3:$H$50001,A3,МСП!$G$3:$G$50001)/COUNTIF(МСП!$H$3:$H$50001,A3))","v":2.8722697056030388},{"$f":"IF(A3=\"\",\"\",SUMIF(МСП!$H$3:$H$50001,A3,МСП!$E$3:$E$50001)/COUNTIF(МСП!H3:H50001,A3))","v":6.833333333333333}]
["Добыча полезных ископаемых",{"$f":"IF(A4=\"\",\"\",SUMIF(МСП!$H$3:$H$50001,A4,МСП!$D$3:$D$50001))","v":22},{"$f":"IF(A4=\"\",\"\",SUMIF(МСП!$H$3:$H$50001,A4,МСП!$F$3:$F$50001)/COUNTIF(МСП!$H$3:$H$50001,A4))","v":47.727272727272727},{"$f":"IF(A4=\"\",\"\",SUMIF(МСП!$H$3:$H$50001,A4,МСП!$G$3:$G$50001)/COUNTIF(МСП!$H$3:$H$50001,A4))","v":4.4545454545454541},{"$f":"IF(A4=\"\",\"\",SUMIF(МСП!$H$3:$H$50001,A4,МСП!$E$3:$E$50001)/COUNTIF(МСП!H4:H50002,A4))","v":9.3333333333333339}]
["Обрабатывающие производства",{"$f":"IF(A5=\"\",\"\",SUMIF(МСП!$H$3:$H$50001,A5,МСП!$D$3:$D$50001))","v":24},{"$f":"IF(A5=\"\",\"\",SUMIF(МСП!$H$3:$H$50001,A5,МСП!$F$3:$F$50001)/COUNTIF(МСП!$H$3:$H$50001,A5))","v":45.833333333333336},{"$f":"IF(A5=\"\",\"\",SUMIF(МСП!$H$3:$H$50001,A5,МСП!$G$3:$G$50001)/COUNTIF(МСП!$H$3:$H$50001,A5))","v":2.2916666666666665},{"$f":"IF(A5=\"\",\"\",SUMIF(МСП!$H$3:$H$50001,A5,МСП!$E$3:$E$50001)/COUNTIF(МСП!H5:H50003,A5))","v":5}]
["Обеспечение электрической энергией, газом и паром; забор и очистка воды",{"$f":"IF(A6=\"\",\"\",SUMIF(МСП!$H$3:$H$50001,A6,МСП!$D$3:$D$50001))","v":26},{"$f":"IF(A6=\"\",\"\",SUMIF(МСП!$H$3:$H$50001,A6,МСП!$F$3:$F$50001)/COUNTIF(МСП!$H$3:$H$50001,A6))","v":44.230769230769234},{"$f":"IF(A6=\"\",\"\",SUMIF(МСП!$H$3:$H$50001,A6,МСП!$G$3:$G$50001)/COUNTIF(МСП!$H$3:$H$50001,A6))","v":2.2115384615384617},{"$f":"IF(A6=\"\",\"\",SUMIF(МСП!$H$3:$H$50001,A6,МСП!$E$3:$E$50001)/COUNTIF(МСП!H6:H50004,A6))","v":5}]
["Строительство",{"$f":"IF(A7=\"\",\"\",SUMIF(МСП!$H$3:$H$50001,A7,МСП!$D$3:$D$50001))","v":102},{"$f":"IF(A7=\"\",\"\",SUMIF(МСП!$H$3:$H$50001,A7,МСП!$F$3:$F$50001)/COUNTIF(МСП!$H$3:$H$50001,A7))","v":34.992163009404393},{"$f":"IF(A7=\"\",\"\",SUMIF(МСП!$H$3:$H$50001,A7,МСП!$G$3:$G$50001)/COUNTIF(МСП!$H$3:$H$50001,A7))","v":2.0905172413793105},{"$f":"IF(A7=\"\",\"\",SUMIF(МСП!$H$3:$H$50001,A7,МСП!$E$3:$E$50001)/COUNTIF(МСП!H7:H50005,A7))","v":5.9375}]
["Оптовая и розничная торговля",{"$f":"IF(A8=\"\",\"\",SUMIF(МСП!$H$3:$H$50001,A8,МСП!$D$3:$D$50001))","v":146},{"$f":"IF(A8=\"\",\"\",SUMIF(МСП!$H$3:$H$50001,A8,МСП!$F$3:$F$50001)/COUNTIF(МСП!$H$3:$H$50001,A8))","v":39.769345238095241},{"$f":"IF(A8=\"\",\"\",SUMIF(МСП!$H$3:$H$50001,A8,МСП!$G$3:$G$50001)/COUNTIF(МСП!$H$3:$H$50001,A8))","v":2.3798363095238093},{"$f":"IF(A8=\"\",\"\",SUMIF(МСП!$H$3:$H$50001,A8,МСП!$E$3:$E$50001)/COUNTIF(МСП!H8:H50006,A8))","v":8.098245614035088}]
["Гостиницы и рестораны",{"$f":"IF(A9=\"\",\"\",SUMIF(МСП!$H$3:$H$50001,A9,МСП!$D$3:$D$50001))","v":34},{"$f":"IF(A9=\"\",\"\",SUMIF(МСП!$H$3:$H$50001,A9,МСП!$F$3:$F$50001)/COUNTIF(МСП!$H$3:$H$50001,A9))","v":39.705882352941174},{"$f":"IF(A9=\"\",\"\",SUMIF(МСП!$H$3:$H$50001,A9,МСП!$G$3:$G$50001)/COUNTIF(МСП!$H$3:$H$50001,A9))","v":1.9852941176470589},{"$f":"IF(A9=\"\",\"\",SUMIF(МСП!$H$3:$H$50001,A9,МСП!$E$3:$E$50001)/COUNTIF(МСП!H9:H50007,A9))","v":5}]
["Транспорт и связь",{"$f":"IF(A10=\"\",\"\",SUMIF(МСП!$H$3:$H$50001,A10,МСП!$D$3:$D$50001))","v":36},{"$f":"IF(A10=\"\",\"\",SUMIF(МСП!$H$3:$H$50001,A10,МСП!$F$3:$F$50001)/COUNTIF(МСП!$H$3:$H$50001,A10))","v":38.888888888888886},{"$f":"IF(A10=\"\",\"\",SUMIF(МСП!$H$3:$H$50001,A10,МСП!$G$3:$G$50001)/COUNTIF(МСП!$H$3:$H$50001,A10))","v":1.9444444444444444},{"$f":"IF(A10=\"\",\"\",SUMIF(МСП!$H$3:$H$50001,A10,МСП!$E$3:$E$50001)/COUNTIF(МСП!H10:H50008,A10))","v":5}]
["Финансовая деятельность",{"$f":"IF(A11=\"\",\"\",SUMIF(МСП!$H$3:$H$50001,A11,МСП!$D$3:$D$50001))","v":38},{"$f":"IF(A11=\"\",\"\",SUMIF(МСП!$H$3:$H$50001,A11,МСП!$F$3:$F$50001)/COUNTIF(МСП!$H$3:$H$50001,A11))","v":38.157894736842103},{"$f":"IF(A11=\"\",\"\",SUMIF(МСП!$H$3:$H$50001,A11,МСП!$G$3:$G$50001)/COUNTIF(МСП!$H$3:$H$50001,A11))","v":1.9078947368421053},{"$f":"IF(A11=\"\",\"\",SUMIF(МСП!$H$3:$H$50001,A11,МСП!$E$3:$E$50001)/COUNTIF(МСП!H11:H50009,A11))","v":5}]
["Операции с недвижимым имуществом, аренда и предоставление услуг",{"$f":"IF(A12=\"\",\"\",SUMIF(МСП!$H$3:$H$50001,A12,МСП!$D$3:$D$50001))","v":40},{"$f":"IF(A12=\"\",\"\",SUMIF(МСП!$H$3:$H$50001,A12,МСП!$F$3:$F$50001)/COUNTIF(МСП!$H$3:$H$50001,A12))","v":37.5},{"$f":"IF(A12=\"\",\"\",SUMIF(МСП!$H$3:$H$50001,A12,МСП!$G$3:$G$50001)/COUNTIF(МСП!$H$3:$H$50001,A12))","v":1.875},{"$f":"IF(A12=\"\",\"\",SUMIF(МСП!$H$3:$H$50001,A12,МСП!$E$3:$E$50001)/COUNTIF(МСП!H12:H50010,A12))","v":5}]
["Образование",{"$f":"IF(A13=\"\",\"\",SUMIF(МСП!$H$3:$H$50001,A13,МСП!$D$3:$D$50001))","v":42},{"$f":"IF(A13=\"\",\"\",SUMIF(МСП!$H$3:$H$50001,A13,МСП!$F$3:$F$50001)/COUNTIF(МСП!$H$3:$H$50001,A13))","v":36.904761904761905},{"$f":"IF(A13=\"\",\"\",SUMIF(МСП!$H$3:$H$50001,A13,МСП!$G$3:$G$50001)/COUNTIF(МСП!$H$3:$H$50001,A13))","v":1.8452380952380953},{"$f":"IF(A13=\"\",\"\",SUMIF(МСП!$H$3:$H$50001,A13,МСП!$E$3:$E$50001)/COUNTIF(МСП!H13:H50011,A13))","v":5}]
["Здравоохранение и предоставление социальных услуг",{"$f":"IF(A14=\"\",\"\",SUMIF(МСП!$H$3:$H$50001,A14,МСП!$D$3:$D$50001))","v":46},{"$f":"IF(A14=\"\",\"\",SUMIF(МСП!$H$3:$H$50001,A14,МСП!$F$3:$F$50001)/COUNTIF(МСП!$H$3:$H$50001,A14))","v":35.869565217391305},{"$f":"IF(A14=\"\",\"\",SUMIF(МСП!$H$3:$H$50001,A14,МСП!$G$3:$G$50001)/COUNTIF(МСП!$H$3:$H$50001,A14))","v":1.7934782608695652},{"$f":"IF(A14=\"\",\"\",SUMIF(МСП!$H$3:$H$50001,A14,МСП!$E$3:$E$50001)/COUNTIF(МСП!H14:H50012,A14))","v":5}]
["Предоставление прочих коммунальных, социальных и персональных услуг",{"$f":"IF(A15=\"\",\"\",SUMIF(МСП!$H$3:$H$50001,A15,МСП!$D$3:$D$50001))","v":48},{"$f":"IF(A15=\"\",\"\",SUMIF(МСП!$H$3:$H$50001,A15,МСП!$F$3:$F$50001)/COUNTIF(МСП!$H$3:$H$50001,A15))","v":35.416666666666664},{"$f":"IF(A15=\"\",\"\",SUMIF(МСП!$H$3:$H$50001,A15,МСП!$G$3:$G$50001)/COUNTIF(МСП!$H$3:$H$50001,A15))","v":1.7708333333333333},{"$f":"IF(A15=\"\",\"\",SUMIF(МСП!$H$3:$H$50001,A15,МСП!$E$3:$E$50001)/COUNTIF(МСП!H15:H50013,A15))","v":5}]
["Прочие отрасли",{"$f":"IF(A16=\"\",\"\",SUMIF(МСП!$H$3:$H$50001,A16,МСП!$D$3:$D$50001))","v":50},{"$f":"IF(A16=\"\",\"\",SUMIF(МСП!$H$3:$H$50001,A16,МСП!$F$3:$F$50001)/COUNTIF(МСП!$H$3:$H$50001,A16))","v":35},{"$f":"IF(A16=\"\",\"\",SUMIF(МСП!$H$3:$H$50001,A16,МСП!$G$3:$G$50001)/COUNTIF(МСП!$H$3:$H$50001,A16))","v":1.75},{"$f":"IF(A16=\"\",\"\",SUMIF(МСП!$H$3:$H$50001,A16,МСП!$E$3:$E$50001)/COUNTIF(МСП!H16:H50014,A16))","v":5}]

{"sheet":"Свод","index":2,"n_rows":13,"n_cols":5,"rows_kept":13,"cut":false,"hidden":false,"merged":[]}
[null,null,null,"Выберите наименование муниципального образования"]
["Выберите наименование МСП","Среднесписочная численность работников в МСП, человек","Выработка на 1 работника, тыс. рублей","Налоговые поступления на 1 работника, тыс. рублей","Налоговая нагрузка, процентов"]
["ООО уч 1",{"$f":"VLOOKUP(A3,МСП!$A$3:$H$50001,4,FALSE)","v":20},{"$f":"VLOOKUP(A3,МСП!$A$3:$I$50001,6,FALSE)","v":50},{"$f":"VLOOKUP(A3,МСП!$A$3:$G$50001,7,FALSE)","v":5},{"$f":"VLOOKUP(A3,МСП!$A$3:$I$50001,5,FALSE)","v":10}]
["ООО уч 2",{"$f":"VLOOKUP(A4,МСП!$A$3:$H$50001,4,FALSE)","v":22},{"$f":"VLOOKUP(A4,МСП!$A$3:$I$50001,6,FALSE)","v":47.727272727272727},{"$f":"VLOOKUP(A4,МСП!$A$3:$G$50001,7,FALSE)","v":4.4545454545454541},{"$f":"VLOOKUP(A4,МСП!$A$3:$I$50001,5,FALSE)","v":9.3333333333333339}]
["ООО уч 6",{"$f":"VLOOKUP(A5,МСП!$A$3:$H$50001,4,FALSE)","v":30},{"$f":"VLOOKUP(A5,МСП!$A$3:$I$50001,6,FALSE)","v":41.666666666666664},{"$f":"VLOOKUP(A5,МСП!$A$3:$G$50001,7,FALSE)","v":2.6666666666666665},{"$f":"VLOOKUP(A5,МСП!$A$3:$I$50001,5,FALSE)","v":6.4}]
["ООО уч 15",{"$f":"VLOOKUP(A6,МСП!$A$3:$H$50001,4,FALSE)","v":48},{"$f":"VLOOKUP(A6,МСП!$A$3:$I$50001,6,FALSE)","v":35.416666666666664},{"$f":"VLOOKUP(A6,МСП!$A$3:$G$50001,7,FALSE)","v":1.7708333333333333},{"$f":"VLOOKUP(A6,МСП!$A$3:$I$50001,5,FALSE)","v":5}]
["ООО уч 20",{"$f":"VLOOKUP(A7,МСП!$A$3:$H$50001,4,FALSE)","v":58},{"$f":"VLOOKUP(A7,МСП!$A$3:$I$50001,6,FALSE)","v":33.620689655172413},{"$f":"VLOOKUP(A7,МСП!$A$3:$G$50001,7,FALSE)","v":1.6810344827586208},{"$f":"VLOOKUP(A7,МСП!$A$3:$I$50001,5,FALSE)","v":5}]
["ООО уч 19",{"$f":"VLOOKUP(A8,МСП!$A$3:$H$50001,4,FALSE)","v":56},{"$f":"VLOOKUP(A8,МСП!$A$3:$I$50001,6,FALSE)","v":33.928571428571431},{"$f":"VLOOKUP(A8,МСП!$A$3:$G$50001,7,FALSE)","v":2.6785714285714284},{"$f":"VLOOKUP(A8,МСП!$A$3:$I$50001,5,FALSE)","v":7.8947368421052628}]
["ООО уч 18",{"$f":"VLOOKUP(A9,МСП!$A$3:$H$50001,4,FALSE)","v":54},{"$f":"VLOOKUP(A9,МСП!$A$3:$I$50001,6,FALSE)","v":34.25925925925926},{"$f":"VLOOKUP(A9,МСП!$A$3:$G$50001,7,FALSE)","v":1.712962962962963},{"$f":"VLOOKUP(A9,МСП!$A$3:$I$50001,5,FALSE)","v":5}]
["ООО уч 13",{"$f":"VLOOKUP(A10,МСП!$A$3:$H$50001,4,FALSE)","v":44},{"$f":"VLOOKUP(A10,МСП!$A$3:$I$50001,6,FALSE)","v":36.363636363636367},{"$f":"VLOOKUP(A10,МСП!$A$3:$G$50001,7,FALSE)","v":2.5},{"$f":"VLOOKUP(A10,МСП!$A$3:$I$50001,5,FALSE)","v":6.8750000000000009}]
["ООО уч 9",{"$f":"VLOOKUP(A11,МСП!$A$3:$H$50001,4,FALSE)","v":36},{"$f":"VLOOKUP(A11,МСП!$A$3:$I$50001,6,FALSE)","v":38.888888888888886},{"$f":"VLOOKUP(A11,МСП!$A$3:$G$50001,7,FALSE)","v":1.9444444444444444},{"$f":"VLOOKUP(A11,МСП!$A$3:$I$50001,5,FALSE)","v":5}]
["ООО уч 5",{"$f":"VLOOKUP(A12,МСП!$A$3:$H$50001,4,FALSE)","v":28},{"$f":"VLOOKUP(A12,МСП!$A$3:$I$50001,6,FALSE)","v":42.857142857142854},{"$f":"VLOOKUP(A12,МСП!$A$3:$G$50001,7,FALSE)","v":2.1428571428571428},{"$f":"VLOOKUP(A12,МСП!$A$3:$I$50001,5,FALSE)","v":5}]
["ООО уч 11",{"$f":"VLOOKUP(A13,МСП!$A$3:$H$50001,4,FALSE)","v":40},{"$f":"VLOOKUP(A13,МСП!$A$3:$I$50001,6,FALSE)","v":37.5},{"$f":"VLOOKUP(A13,МСП!$A$3:$G$50001,7,FALSE)","v":1.875},{"$f":"VLOOKUP(A13,МСП!$A$3:$I$50001,5,FALSE)","v":5}]

{"sheet":"МСП","index":3,"n_rows":50001,"n_cols":8,"rows_kept":4500,"cut":true,"hidden":false,"merged":[[0,1,0,6]],"bounds":{"rows_first":2000,"rows_last":500,"rows_between":2000,"halvings":0}}
[null,"Пестречинский муниципальный район"]
["Введите наименование МСП","Введите объем выручки организации (Отчет о фин.результатах строка 2110), тыс. рублей","Введите объем налоговых поступлений организации, тыс. рублей","Введите среднесписочной численности работников в МСП, человек","Налоговая нагрузка, процентов","Выработка на 1 работника, тыс. рублей","Налоговые поступления на 1 работника, тыс. рублей","Выберите вид отрасли для МСП"]
["ООО уч 1",1000,100,20,{"$f":"IF(A3=\"\",\"\",C3/B3*100)","v":10},{"$f":"IF(A3=\"\",\"\",B3/D3)","v":50},{"$f":"IF(A3=\"\",\"\",C3/D3)","v":5},"Сельское хозяйство"]
["ООО уч 2",1050,98,22,{"$f":"IF(A4=\"\",\"\",C4/B4*100)","v":9.3333333333333339},{"$f":"IF(A4=\"\",\"\",B4/D4)","v":47.727272727272727},{"$f":"IF(A4=\"\",\"\",C4/D4)","v":4.4545454545454541},"Добыча полезных ископаемых"]
["ООО уч 3",1100,55,24,5,45.833333333333336,2.2916666666666665,"Обрабатывающие производства"]
["ООО уч 4",1150,57.5,26,5,44.230769230769234,2.2115384615384617,"Обеспечение электрической энергией, газом и паром; забор и очистка воды"]
["ООО уч 5",1200,60,28,5,42.857142857142854,2.1428571428571428,"Оптовая и розничная торговля"]
["ООО уч 6",1250,80,30,6.4,41.666666666666664,2.6666666666666665,"Оптовая и розничная торговля"]
["ООО уч 7",1300,65,32,5,40.625,2.03125,"Оптовая и розничная торговля"]
["ООО уч 8",1350,67.5,34,5,39.705882352941174,1.9852941176470589,"Гостиницы и рестораны"]
["ООО уч 9",1400,70,36,5,38.888888888888886,1.9444444444444444,"Транспорт и связь"]
["ООО уч 10",1450,72.5,38,5,38.157894736842103,1.9078947368421053,"Финансовая деятельность"]
["ООО уч 11",1500,75,40,5,37.5,1.875,"Операции с недвижимым имуществом, аренда и предоставление услуг"]
["ООО уч 12",1550,77.5,42,5,36.904761904761905,1.8452380952380953,"Образование"]
["ООО уч 13",1600,110,44,6.8750000000000009,36.363636363636367,2.5,"Строительство"]
["ООО уч 14",1650,82.5,46,5,35.869565217391305,1.7934782608695652,"Здравоохранение и предоставление социальных услуг"]
["ООО уч 15",1700,85,48,5,35.416666666666664,1.7708333333333333,"Предоставление прочих коммунальных, социальных и персональных услуг"]
["ООО уч 16",1750,87.5,50,5,35,1.75,"Прочие отрасли"]
["ООО уч 17",1800,99,52,5.5,34.615384615384613,1.9038461538461537,"Сельское хозяйство"]
["ООО уч 18",1850,92.5,54,5,34.25925925925926,1.712962962962963,"Сельское хозяйство"]
["ООО уч 19",1900,150,56,7.8947368421052628,33.928571428571431,2.6785714285714284,"Оптовая и розничная торговля"]
["ООО уч 20",1950,97.5,58,5,33.620689655172413,1.6810344827586208,"Строительство"]
[null,null,null,null,"","",""]
[null,null,null,null,"","",""]
[null,null,null,null,"","",""]
[null,null,null,null,"","",""]
[null,null,null,null,"","",""]
[null,null,null,null,"","",""]
[null,null,null,null,{"$f":"IF(A29=\"\",\"\",C29/B29*100)","v":""},{"$f":"IF(A29=\"\",\"\",B29/D29)","v":""},{"$f":"IF(A29=\"\",\"\",C29/D29)","v":""}]
[null,null,null,null,"","",""]
[null,null,null,null,"","",""]
[null,null,null,null,"","",""]
[null,null,null,null,"","",""]
[null,null,null,null,"","",""]
[null,null,null,null,"","",""]
[null,null,null,null,"","",""]
[null,null,null,null,"","",""]
[null,null,null,null,"","",""]
[null,null,null,null,"","",""]
[null,null,null,null,"","",""]
[null,null,null,null,"","",""]
[null,null,null,null,"","",""]
[null,null,null,null,"","",""]
[null,null,null,null,"","",""]
[null,null,null,null,"","",""]
[null,null,null,null,"","",""]
[null,null,null,null,"","",""]
[null,null,null,null,"","",""]
[null,null,null,null,"","",""]
[null,null,null,null,"","",""]
[null,null,null,null,"","",""]
[null,null,null,null,"","",""]
[null,null,null,null,"","",""]
[null,null,null,null,"","",""]
[null,null,null,null,"","",""]
[null,null,null,null,"","",""]
[null,null,null,null,"","",""]
[null,null,null,null,"","",""]
[null,null,null,null,"","",""]
[null,null,null,null,"","",""]
[null,null,null,null,"","",""]
[null,null,null,null,"","",""]
[null,null,null,null,"","",""]
[null,null,null,null,"","",""]
[null,null,null,null,"","",""]
[null,null,null,null,"","",""]
[null,null,null,null,"","",""]
[null,null,null,null,"","",""]
[null,null,null,null,"","",""]
[null,null,null,null,"","",""]
[null,null,null,null,"","",""]
[null,null,null,null,"","",""]
[null,null,null,null,"","",""]
[null,null,null,null,"","",""]
[null,null,null,null,"","",""]
[null,null,null,null,"","",""]
[null,null,null,null,"","",""]
[null,null,null,null,"","",""]
[null,null,null,null,"","",""]
[null,null,null,null,"","",""]
[null,null,null,null,"","",""]
[null,null,null,null,"","",""]
[null,null,null,null,"","",""]
[null,null,null,null,"","",""]
[null,null,null,null,"","",""]
[null,null,null,null,"","",""]
[null,null,null,null,"","",""]
[null,null,null,null,"","",""]
[null,null,null,null,"","",""]
[null,null,null,null,"","",""]
[null,null,null,null,"","",""]
[null,null,null,null,"","",""]
[null,null,null,null,{"$f":"IF(A93=\"\",\"\",C93/B93*100)","v":""},{"$f":"IF(A93=\"\",\"\",B93/D93)","v":""},{"$f":"IF(A93=\"\",\"\",C93/D93)","v":""}]
[null,null,null,null,"","",""]
[null,null,null,null,"","",""]
[null,null,null,null,"","",""]
[null,null,null,null,"","",""]
[null,null,null,null,"","",""]
[null,null,null,null,"","",""]
[null,null,null,null,"","",""]
[null,null,null,null,"","",""]
[null,null,null,null,"","",""]
[null,null,null,null,"","",""]
[null,null,null,null,"","",""]
[null,null,null,null,"","",""]
[null,null,null,null,"","",""]
[null,null,null,null,"","",""]
[null,null,null,null,"","",""]
[null,null,null,null,"","",""]
[null,null,null,null,"","",""]
[null,null,null,null,"","",""]
[null,null,null,null,"","",""]
[null,null,null,null,"","",""]
[null,null,null,null,"","",""]
[null,null,null,null,"","",""]
[null,null,null,null,"","",""]
[null,null,null,null,"","",""]
[null,null,null,null,"","",""]
[null,null,null,null,"","",""]
[null,null,null,null,"","",""]
[null,null,null,null,"","",""]
[null,null,null,null,"","",""]
[null,null,null,null,"","",""]
[null,null,null,null,"","",""]
[null,null,null,null,"","",""]
[null,null,null,null,"","",""]
[null,null,null,null,"","",""]
[null,null,null,null,"","",""]
[null,null,null,null,"","",""]
[null,null,null,null,"","",""]
[null,null,null,null,"","",""]
[null,null,null,null,"","",""]
[null,null,null,null,"","",""]
[null,null,null,null,"","",""]
[null,null,null,null,"","",""]
[null,null,null,null,"","",""]
[null,null,null,null,"","",""]
[null,null,null,null,"","",""]
[null,null,null,null,"","",""]
[null,null,null,null,"","",""]
[null,null,null,null,"","",""]
[null,null,null,null,"","",""]
[null,null,null,null,"","",""]
[null,null,null,null,"","",""]
[null,null,null,null,"","",""]
[null,null,null,null,"","",""]
[null,null,null,null,"","",""]
[null,null,null,null,"","",""]
[null,null,null,null,"","",""]
[null,null,null,null,"","",""]
[null,null,null,null,"","",""]
[null,null,null,null,"","",""]
[null,null,null,null,"","",""]
[null,null,null,null,"","",""]
[null,null,null,null,"","",""]
[null,null,null,null,"","",""]
[null,null,null,null,{"$f":"IF(A157=\"\",\"\",C157/B157*100)","v":""},{"$f":"IF(A157=\"\",\"\",B157/D157)","v":""},{"$f":"IF(A157=\"\",\"\",C157/D157)","v":""}]
[null,null,null,null,"","",""]
[null,null,null,null,"","",""]
[null,null,null,null,"","",""]
[null,null,null,null,"","",""]
[null,null,null,null,"","",""]
[null,null,null,null,"","",""]
[null,null,null,null,"","",""]
[null,null,null,null,"","",""]
[null,null,null,null,"","",""]
[null,null,null,null,"","",""]
[null,null,null,null,"","",""]
[null,null,null,null,"","",""]
[null,null,null,null,"","",""]
[null,null,null,null,"","",""]
[null,null,null,null,"","",""]
[null,null,null,null,"","",""]
[null,null,null,null,"","",""]
[null,null,null,null,"","",""]
[null,null,null,null,"","",""]
[null,null,null,null,"","",""]
[null,null,null,null,"","",""]
[null,null,null,null,"","",""]
[null,null,null,null,"","",""]
[null,null,null,null,"","",""]
[null,null,null,null,"","",""]
[null,null,null,null,"","",""]
[null,null,null,null,"","",""]
[null,null,null,null,"","",""]
[null,null,null,null,"","",""]
[null,null,null,null,"","",""]
[null,null,null,null,"","",""]
[null,null,null,null,"","",""]
[null,null,null,null,"","",""]
[null,null,null,null,"","",""]
[null,null,null,null,"","",""]
[null,null,null,null,"","",""]
[null,null,null,null,"","",""]
[null,null,null,null,"","",""]
[null,null,null,null,"","",""]
[null,null,null,null,"","",""]
[null,null,null,null,"","",""]
[null,null,null,null,"","",""]
[null,null,null,null,"","",""]
[null,null,null,null,"","",""]
[null,null,null,null,"","",""]
[null,null,null,null,"","",""]
[null,null,null,null,"","",""]
[null,null,null,null,"","",""]
[null,null,null,null,"","",""]
[null,null,null,null,"","",""]
[null,null,null,null,"","",""]
[null,null,null,null,"","",""]
[null,null,null,null,"","",""]
[null,null,null,null,"","",""]
[null,null,null,null,"","",""]
[null,null,null,null,"","",""]
[null,null,null,null,"","",""]
[null,null,null,null,"","",""]
[null,null,null,null,"","",""]
[null,null,null,null,"","",""]
[null,null,null,null,"","",""]
[null,null,null,null,"","",""]
[null,null,null,null,"","",""]
[null,null,null,null,{"$f":"IF(A221=\"\",\"\",C221/B221*100)","v":""},{"$f":"IF(A221=\"\",\"\",B221/D221)","v":""},{"$f":"IF(A221=\"\",\"\",C221/D221)","v":""}]
[null,null,null,null,"","",""]
[null,null,null,null,"","",""]
[null,null,null,null,"","",""]
[null,null,null,null,"","",""]
[null,null,null,null,"","",""]
[null,null,null,null,"","",""]
[null,null,null,null,"","",""]
[null,null,null,null,"","",""]
[null,null,null,null,"","",""]
[null,null,null,null,"","",""]
[null,null,null,null,"","",""]
[null,null,null,null,"","",""]
[null,null,null,null,"","",""]
[null,null,null,null,"","",""]
[null,null,null,null,"","",""]
[null,null,null,null,"","",""]
[null,null,null,null,"","",""]
[null,null,null,null,"","",""]
[null,null,null,null,"","",""]
[null,null,null,null,"","",""]
[null,null,null,null,"","",""]
[null,null,null,null,"","",""]
[null,null,null,null,"","",""]
[null,null,null,null,"","",""]
[null,null,null,null,"","",""]
[null,null,null,null,"","",""]
[null,null,null,null,"","",""]
[null,null,null,null,"","",""]
[null,null,null,null,"","",""]
[null,null,null,null,"","",""]
[null,null,null,null,"","",""]
[null,null,null,null,"","",""]
[null,null,null,null,"","",""]
[null,null,null,null,"","",""]
[null,null,null,null,"","",""]
[null,null,null,null,"","",""]
[null,null,null,null,"","",""]
[null,null,null,null,"","",""]
[null,null,null,null,"","",""]
[null,null,null,null,"","",""]
[null,null,null,null,"","",""]
[null,null,null,null,"","",""]
[null,null,null,null,"","",""]
[null,null,null,null,"","",""]
[null,null,null,null,"","",""]
[null,null,null,null,"","",""]
[null,null,null,null,"","",""]
[null,null,null,null,"","",""]
[null,null,null,null,"","",""]
[null,null,null,null,"","",""]
[null,null,null,null,"","",""]
[null,null,null,null,"","",""]
[null,null,null,null,"","",""]
[null,null,null,null,"","",""]
[null,null,null,null,"","",""]
[null,null,null,null,"","",""]
[null,null,null,null,"","",""]
[null,null,null,null,"","",""]
[null,null,null,null,"","",""]
[null,null,null,null,"","",""]
[null,null,null,null,"","",""]
[null,null,null,null,"","",""]
[null,null,null,null,"","",""]
[null,null,null,null,{"$f":"IF(A285=\"\",\"\",C285/B285*100)","v":""},{"$f":"IF(A285=\"\",\"\",B285/D285)","v":""},{"$f":"IF(A285=\"\",\"\",C285/D285)","v":""}]
[null,null,null,null,"","",""]
[null,null,null,null,"","",""]
[null,null,null,null,"","",""]
[null,null,null,null,"","",""]
[null,null,null,null,"","",""]
[null,null,null,null,"","",""]
[null,null,null,null,"","",""]
[null,null,null,null,"","",""]
[null,null,null,null,"","",""]
[null,null,null,null,"","",""]
[null,null,null,null,"","",""]
[null,null,null,null,"","",""]
[null,null,null,null,"","",""]
[null,null,null,null,"","",""]
[null,null,null,null,"","",""]
[null,null,null,null,"","",""]
[null,null,null,null,"","",""]
[null,null,null,null,"","",""]
[null,null,null,null,"","",""]
[null,null,null,null,"","",""]
[null,null,null,null,"","",""]
[null,null,null,null,"","",""]
[null,null,null,null,"","",""]
[null,null,null,null,"","",""]
[null,null,null,null,"","",""]
[null,null,null,null,"","",""]
[null,null,null,null,"","",""]
[null,null,null,null,"","",""]
[null,null,null,null,"","",""]
[null,null,null,null,"","",""]
[null,null,null,null,"","",""]
[null,null,null,null,"","",""]
[null,null,null,null,"","",""]
[null,null,null,null,"","",""]
[null,null,null,null,"","",""]
[null,null,null,null,"","",""]
[null,null,null,null,"","",""]
[null,null,null,null,"","",""]
[null,null,null,null,"","",""]
[null,null,null,null,"","",""]
[null,null,null,null,"","",""]
[null,null,null,null,"","",""]
[null,null,null,null,"","",""]
[null,null,null,null,"","",""]
[null,null,null,null,"","",""]
[null,null,null,null,"","",""]
[null,null,null,null,"","",""]
[null,null,null,null,"","",""]
[null,null,null,null,"","",""]
[null,null,null,null,"","",""]
[null,null,null,null,"","",""]
[null,null,null,null,"","",""]
[null,null,null,null,"","",""]
[null,null,null,null,"","",""]
[null,null,null,null,"","",""]
[null,null,null,null,"","",""]
[null,null,null,null,"","",""]
[null,null,null,null,"","",""]
[null,null,null,null,"","",""]
[null,null,null,null,"","",""]
[null,null,null,null,"","",""]
[null,null,null,null,"","",""]
[null,null,null,null,"","",""]
[null,null,null,null,{"$f":"IF(A349=\"\",\"\",C349/B349*100)","v":""},{"$f":"IF(A349=\"\",\"\",B349/D349)","v":""},{"$f":"IF(A349=\"\",\"\",C349/D349)","v":""}]
[null,null,null,null,"","",""]
[null,null,null,null,"","",""]
[null,null,null,null,"","",""]
[null,null,null,null,"","",""]
[null,null,null,null,"","",""]
[null,null,null,null,"","",""]
[null,null,null,null,"","",""]
[null,null,null,null,"","",""]
[null,null,null,null,"","",""]
[null,null,null,null,"","",""]
[null,null,null,null,"","",""]
[null,null,null,null,"","",""]
[null,null,null,null,"","",""]
[null,null,null,null,"","",""]
[null,null,null,null,"","",""]
[null,null,null,null,"","",""]
[null,null,null,null,"","",""]
[null,null,null,null,"","",""]
[null,null,null,null,"","",""]
[null,null,null,null,"","",""]
[null,null,null,null,"","",""]
[null,null,null,null,"","",""]
[null,null,null,null,"","",""]
[null,null,null,null,"","",""]
[null,null,null,null,"","",""]
[null,null,null,null,"","",""]
[null,null,null,null,"","",""]
[null,null,null,null,"","",""]
[null,null,null,null,"","",""]
[null,null,null,null,"","",""]
[null,null,null,null,"","",""]
[null,null,null,null,"","",""]
[null,null,null,null,"","",""]
[null,null,null,null,"","",""]
[null,null,null,null,"","",""]
[null,null,null,null,"","",""]
[null,null,null,null,"","",""]
[null,null,null,null,"","",""]
[null,null,null,null,"","",""]
[null,null,null,null,"","",""]
[null,null,null,null,"","",""]
[null,null,null,null,"","",""]
[null,null,null,null,"","",""]
[null,null,null,null,"","",""]
[null,null,null,null,"","",""]
[null,null,null,null,"","",""]
[null,null,null,null,"","",""]
[null,null,null,null,"","",""]
[null,null,null,null,"","",""]
[null,null,null,null,"","",""]
[null,null,null,null,"","",""]
[null,null,null,null,"","",""]
[null,null,null,null,"","",""]
[null,null,null,null,"","",""]
[null,null,null,null,"","",""]
[null,null,null,null,"","",""]
[null,null,null,null,"","",""]
[null,null,null,null,"","",""]
[null,null,null,null,"","",""]
[null,null,null,null,"","",""]
[null,null,null,null,"","",""]
[null,null,null,null,"","",""]
[null,null,null,null,"","",""]
[null,null,null,null,{"$f":"IF(A413=\"\",\"\",C413/B413*100)","v":""},{"$f":"IF(A413=\"\",\"\",B413/D413)","v":""},{"$f":"IF(A413=\"\",\"\",C413/D413)","v":""}]
[null,null,null,null,"","",""]
[null,null,null,null,"","",""]
[null,null,null,null,"","",""]
[null,null,null,null,"","",""]
[null,null,null,null,"","",""]
[null,null,null,null,"","",""]
[null,null,null,null,"","",""]
[null,null,null,null,"","",""]
[null,null,null,null,"","",""]
[null,null,null,null,"","",""]
[null,null,null,null,"","",""]
[null,null,null,null,"","",""]
[null,null,null,null,"","",""]
[null,null,null,null,"","",""]
[null,null,null,null,"","",""]
[null,null,null,null,"","",""]
[null,null,null,null,"","",""]
[null,null,null,null,"","",""]
[null,null,null,null,"","",""]
[null,null,null,null,"","",""]
[null,null,null,null,"","",""]
[null,null,null,null,"","",""]
[null,null,null,null,"","",""]
[null,null,null,null,"","",""]
[null,null,null,null,"","",""]
[null,null,null,null,"","",""]
[null,null,null,null,"","",""]
[null,null,null,null,"","",""]
[null,null,null,null,"","",""]
[null,null,null,null,"","",""]
[null,null,null,null,"","",""]
[null,null,null,null,"","",""]
[null,null,null,null,"","",""]
[null,null,null,null,"","",""]
[null,null,null,null,"","",""]
[null,null,null,null,"","",""]
[null,null,null,null,"","",""]
[null,null,null,null,"","",""]
[null,null,null,null,"","",""]
[null,null,null,null,"","",""]
[null,null,null,null,"","",""]
[null,null,null,null,"","",""]
[null,null,null,null,"","",""]
[null,null,null,null,"","",""]
[null,null,null,null,"","",""]
[null,null,null,null,"","",""]
[null,null,null,null,"","",""]
[null,null,null,null,"","",""]
[null,null,null,null,"","",""]
[null,null,null,null,"","",""]
[null,null,null,null,"","",""]
[null,null,null,null,"","",""]
[null,null,null,null,"","",""]
[null,null,null,null,"","",""]
[null,null,null,null,"","",""]
[null,null,null,null,"","",""]
[null,null,null,null,"","",""]
[null,null,null,null,"","",""]
[null,null,null,null,"","",""]
[null,null,null,null,"","",""]
[null,null,null,null,"","",""]
[null,null,null,null,"","",""]
[null,null,null,null,"","",""]
[null,null,null,null,{"$f":"IF(A477=\"\",\"\",C477/B477*100)","v":""},{"$f":"IF(A477=\"\",\"\",B477/D477)","v":""},{"$f":"IF(A477=\"\",\"\",C477/D477)","v":""}]
[null,null,null,null,"","",""]
[null,null,null,null,"","",""]
[null,null,null,null,"","",""]
[null,null,null,null,"","",""]
[null,null,null,null,"","",""]
[null,null,null,null,"","",""]
[null,null,null,null,"","",""]
[null,null,null,null,"","",""]
[null,null,null,null,"","",""]
[null,null,null,null,"","",""]
[null,null,null,null,"","",""]
[null,null,null,null,"","",""]
[null,null,null,null,"","",""]
[null,null,null,null,"","",""]
[null,null,null,null,"","",""]
[null,null,null,null,"","",""]
[null,null,null,null,"","",""]
[null,null,null,null,"","",""]
[null,null,null,null,"","",""]
[null,null,null,null,"","",""]
[null,null,null,null,"","",""]
[null,null,null,null,"","",""]
[null,null,null,null,"","",""]
[null,null,null,null,"","",""]
[null,null,null,null,"","",""]
[null,null,null,null,"","",""]
[null,null,null,null,"","",""]
[null,null,null,null,"","",""]
[null,null,null,null,"","",""]
[null,null,null,null,"","",""]
[null,null,null,null,"","",""]
[null,null,null,null,"","",""]
[null,null,null,null,"","",""]
[null,null,null,null,"","",""]
[null,null,null,null,"","",""]
[null,null,null,null,"","",""]
[null,null,null,null,"","",""]
[null,null,null,null,"","",""]
[null,null,null,null,"","",""]
[null,null,null,null,"","",""]
[null,null,null,null,"","",""]
[null,null,null,null,"","",""]
[null,null,null,null,"","",""]
[null,null,null,null,"","",""]
[null,null,null,null,"","",""]
[null,null,null,null,"","",""]
[null,null,null,null,"","",""]
[null,null,null,null,"","",""]
[null,null,null,null,"","",""]
[null,null,null,null,"","",""]
[null,null,null,null,"","",""]
[null,null,null,null,"","",""]
[null,null,null,null,"","",""]
[null,null,null,null,"","",""]
[null,null,null,null,"","",""]
[null,null,null,null,"","",""]
[null,null,null,null,"","",""]
[null,null,null,null,"","",""]
[null,null,null,null,"","",""]
[null,null,null,null,"","",""]
[null,null,null,null,"","",""]
[null,null,null,null,"","",""]
[null,null,null,null,"","",""]
[null,null,null,null,{"$f":"IF(A541=\"\",\"\",C541/B541*100)","v":""},{"$f":"IF(A541=\"\",\"\",B541/D541)","v":""},{"$f":"IF(A541=\"\",\"\",C541/D541)","v":""}]
[null,null,null,null,"","",""]
[null,null,null,null,"","",""]
[null,null,null,null,"","",""]
[null,null,null,null,"","",""]
[null,null,null,null,"","",""]
[null,null,null,null,"","",""]
[null,null,null,null,"","",""]
[null,null,null,null,"","",""]
[null,null,null,null,"","",""]
[null,null,null,null,"","",""]
[null,null,null,null,"","",""]
[null,null,null,null,"","",""]
[null,null,null,null,"","",""]
[null,null,null,null,"","",""]
[null,null,null,null,"","",""]
[null,null,null,null,"","",""]
[null,null,null,null,"","",""]
[null,null,null,null,"","",""]
[null,null,null,null,"","",""]
[null,null,null,null,"","",""]
[null,null,null,null,"","",""]
[null,null,null,null,"","",""]
[null,null,null,null,"","",""]
[null,null,null,null,"","",""]
[null,null,null,null,"","",""]
[null,null,null,null,"","",""]
[null,null,null,null,"","",""]
[null,null,null,null,"","",""]
[null,null,null,null,"","",""]
[null,null,null,null,"","",""]
[null,null,null,null,"","",""]
[null,null,null,null,"","",""]
[null,null,null,null,"","",""]
[null,null,null,null,"","",""]
[null,null,null,null,"","",""]
[null,null,null,null,"","",""]
[null,null,null,null,"","",""]
[null,null,null,null,"","",""]
[null,null,null,null,"","",""]
[null,null,null,null,"","",""]
[null,null,null,null,"","",""]
[null,null,null,null,"","",""]
[null,null,null,null,"","",""]
[null,null,null,null,"","",""]
[null,null,null,null,"","",""]
[null,null,null,null,"","",""]
[null,null,null,null,"","",""]
[null,null,null,null,"","",""]
[null,null,null,null,"","",""]
[null,null,null,null,"","",""]
[null,null,null,null,"","",""]
[null,null,null,null,"","",""]
[null,null,null,null,"","",""]
[null,null,null,null,"","",""]
[null,null,null,null,"","",""]
[null,null,null,null,"","",""]
[null,null,null,null,"","",""]
[null,null,null,null,"","",""]
[null,null,null,null,"","",""]
[null,null,null,null,"","",""]
[null,null,null,null,"","",""]
[null,null,null,null,"","",""]
[null,null,null,null,"","",""]
[null,null,null,null,{"$f":"IF(A605=\"\",\"\",C605/B605*100)","v":""},{"$f":"IF(A605=\"\",\"\",B605/D605)","v":""},{"$f":"IF(A605=\"\",\"\",C605/D605)","v":""}]
[null,null,null,null,"","",""]
[null,null,null,null,"","",""]
[null,null,null,null,"","",""]
[null,null,null,null,"","",""]
[null,null,null,null,"","",""]
[null,null,null,null,"","",""]
[null,null,null,null,"","",""]
[null,null,null,null,"","",""]
[null,null,null,null,"","",""]
[null,null,null,null,"","",""]
[null,null,null,null,"","",""]
[null,null,null,null,"","",""]
[null,null,null,null,"","",""]
[null,null,null,null,"","",""]
[null,null,null,null,"","",""]
[null,null,null,null,"","",""]
[null,null,null,null,"","",""]
[null,null,null,null,"","",""]
[null,null,null,null,"","",""]
[null,null,null,null,"","",""]
[null,null,null,null,"","",""]
[null,null,null,null,"","",""]
[null,null,null,null,"","",""]
[null,null,null,null,"","",""]
[null,null,null,null,"","",""]
[null,null,null,null,"","",""]
[null,null,null,null,"","",""]
[null,null,null,null,"","",""]
[null,null,null,null,"","",""]
[null,null,null,null,"","",""]
[null,null,null,null,"","",""]
[null,null,null,null,"","",""]
[null,null,null,null,"","",""]
[null,null,null,null,"","",""]
[null,null,null,null,"","",""]
[null,null,null,null,"","",""]
[null,null,null,null,"","",""]
[null,null,null,null,"","",""]
[null,null,null,null,"","",""]
[null,null,null,null,"","",""]
[null,null,null,null,"","",""]
[null,null,null,null,"","",""]
[null,null,null,null,"","",""]
[null,null,null,null,"","",""]
[null,null,null,null,"","",""]
[null,null,null,null,"","",""]
[null,null,null,null,"","",""]
[null,null,null,null,"","",""]
[null,null,null,null,"","",""]
[null,null,null,null,"","",""]
[null,null,null,null,"","",""]
[null,null,null,null,"","",""]
[null,null,null,null,"","",""]
[null,null,null,null,"","",""]
[null,null,null,null,"","",""]
[null,null,null,null,"","",""]
[null,null,null,null,"","",""]
[null,null,null,null,"","",""]
[null,null,null,null,"","",""]
[null,null,null,null,"","",""]
[null,null,null,null,"","",""]
[null,null,null,null,"","",""]
[null,null,null,null,"","",""]
[null,null,null,null,{"$f":"IF(A669=\"\",\"\",C669/B669*100)","v":""},{"$f":"IF(A669=\"\",\"\",B669/D669)","v":""},{"$f":"IF(A669=\"\",\"\",C669/D669)","v":""}]
[null,null,null,null,"","",""]
[null,null,null,null,"","",""]
[null,null,null,null,"","",""]
[null,null,null,null,"","",""]
[null,null,null,null,"","",""]
[null,null,null,null,"","",""]
[null,null,null,null,"","",""]
[null,null,null,null,"","",""]
[null,null,null,null,"","",""]
[null,null,null,null,"","",""]
[null,null,null,null,"","",""]
[null,null,null,null,"","",""]
[null,null,null,null,"","",""]
[null,null,null,null,"","",""]
[null,null,null,null,"","",""]
[null,null,null,null,"","",""]
[null,null,null,null,"","",""]
[null,null,null,null,"","",""]
[null,null,null,null,"","",""]
[null,null,null,null,"","",""]
[null,null,null,null,"","",""]
[null,null,null,null,"","",""]
[null,null,null,null,"","",""]
[null,null,null,null,"","",""]
[null,null,null,null,"","",""]
[null,null,null,null,"","",""]
[null,null,null,null,"","",""]
[null,null,null,null,"","",""]
[null,null,null,null,"","",""]
[null,null,null,null,"","",""]
[null,null,null,null,"","",""]
[null,null,null,null,"","",""]
[null,null,null,null,"","",""]
[null,null,null,null,"","",""]
[null,null,null,null,"","",""]
[null,null,null,null,"","",""]
[null,null,null,null,"","",""]
[null,null,null,null,"","",""]
[null,null,null,null,"","",""]
[null,null,null,null,"","",""]
[null,null,null,null,"","",""]
[null,null,null,null,"","",""]
[null,null,null,null,"","",""]
[null,null,null,null,"","",""]
[null,null,null,null,"","",""]
[null,null,null,null,"","",""]
[null,null,null,null,"","",""]
[null,null,null,null,"","",""]
[null,null,null,null,"","",""]
[null,null,null,null,"","",""]
[null,null,null,null,"","",""]
[null,null,null,null,"","",""]
[null,null,null,null,"","",""]
[null,null,null,null,"","",""]
[null,null,null,null,"","",""]
[null,null,null,null,"","",""]
[null,null,null,null,"","",""]
[null,null,null,null,"","",""]
[null,null,null,null,"","",""]
[null,null,null,null,"","",""]
[null,null,null,null,"","",""]
[null,null,null,null,"","",""]
[null,null,null,null,"","",""]
[null,null,null,null,{"$f":"IF(A733=\"\",\"\",C733/B733*100)","v":""},{"$f":"IF(A733=\"\",\"\",B733/D733)","v":""},{"$f":"IF(A733=\"\",\"\",C733/D733)","v":""}]
[null,null,null,null,"","",""]
[null,null,null,null,"","",""]
[null,null,null,null,"","",""]
[null,null,null,null,"","",""]
[null,null,null,null,"","",""]
[null,null,null,null,"","",""]
[null,null,null,null,"","",""]
[null,null,null,null,"","",""]
[null,null,null,null,"","",""]
[null,null,null,null,"","",""]
[null,null,null,null,"","",""]
[null,null,null,null,"","",""]
[null,null,null,null,"","",""]
[null,null,null,null,"","",""]
[null,null,null,null,"","",""]
[null,null,null,null,"","",""]
[null,null,null,null,"","",""]
[null,null,null,null,"","",""]
[null,null,null,null,"","",""]
[null,null,null,null,"","",""]
[null,null,null,null,"","",""]
[null,null,null,null,"","",""]
[null,null,null,null,"","",""]
[null,null,null,null,"","",""]
[null,null,null,null,"","",""]
[null,null,null,null,"","",""]
[null,null,null,null,"","",""]
[null,null,null,null,"","",""]
[null,null,null,null,"","",""]
[null,null,null,null,"","",""]
[null,null,null,null,"","",""]
[null,null,null,null,"","",""]
[null,null,null,null,"","",""]
[null,null,null,null,"","",""]
[null,null,null,null,"","",""]
[null,null,null,null,"","",""]
[null,null,null,null,"","",""]
[null,null,null,null,"","",""]
[null,null,null,null,"","",""]
[null,null,null,null,"","",""]
[null,null,null,null,"","",""]
[null,null,null,null,"","",""]
[null,null,null,null,"","",""]
[null,null,null,null,"","",""]
[null,null,null,null,"","",""]
[null,null,null,null,"","",""]
[null,null,null,null,"","",""]
[null,null,null,null,"","",""]
[null,null,null,null,"","",""]
[null,null,null,null,"","",""]
[null,null,null,null,"","",""]
[null,null,null,null,"","",""]
[null,null,null,null,"","",""]
[null,null,null,null,"","",""]
[null,null,null,null,"","",""]
[null,null,null,null,"","",""]
[null,null,null,null,"","",""]
[null,null,null,null,"","",""]
[null,null,null,null,"","",""]
[null,null,null,null,"","",""]
[null,null,null,null,"","",""]
[null,null,null,null,"","",""]
[null,null,null,null,"","",""]
[null,null,null,null,{"$f":"IF(A797=\"\",\"\",C797/B797*100)","v":""},{"$f":"IF(A797=\"\",\"\",B797/D797)","v":""},{"$f":"IF(A797=\"\",\"\",C797/D797)","v":""}]
[null,null,null,null,"","",""]
[null,null,null,null,"","",""]
[null,null,null,null,"","",""]
[null,null,null,null,"","",""]
[null,null,null,null,"","",""]
[null,null,null,null,"","",""]
[null,null,null,null,"","",""]
[null,null,null,null,"","",""]
[null,null,null,null,"","",""]
[null,null,null,null,"","",""]
[null,null,null,null,"","",""]
[null,null,null,null,"","",""]
[null,null,null,null,"","",""]
[null,null,null,null,"","",""]
[null,null,null,null,"","",""]
[null,null,null,null,"","",""]
[null,null,null,null,"","",""]
[null,null,null,null,"","",""]
[null,null,null,null,"","",""]
[null,null,null,null,"","",""]
[null,null,null,null,"","",""]
[null,null,null,null,"","",""]
[null,null,null,null,"","",""]
[null,null,null,null,"","",""]
[null,null,null,null,"","",""]
[null,null,null,null,"","",""]
[null,null,null,null,"","",""]
[null,null,null,null,"","",""]
[null,null,null,null,"","",""]
[null,null,null,null,"","",""]
[null,null,null,null,"","",""]
[null,null,null,null,"","",""]
[null,null,null,null,"","",""]
[null,null,null,null,"","",""]
[null,null,null,null,"","",""]
[null,null,null,null,"","",""]
[null,null,null,null,"","",""]
[null,null,null,null,"","",""]
[null,null,null,null,"","",""]
[null,null,null,null,"","",""]
[null,null,null,null,"","",""]
[null,null,null,null,"","",""]
[null,null,null,null,"","",""]
[null,null,null,null,"","",""]
[null,null,null,null,"","",""]
[null,null,null,null,"","",""]
[null,null,null,null,"","",""]
[null,null,null,null,"","",""]
[null,null,null,null,"","",""]
[null,null,null,null,"","",""]
[null,null,null,null,"","",""]
[null,null,null,null,"","",""]
[null,null,null,null,"","",""]
[null,null,null,null,"","",""]
[null,null,null,null,"","",""]
[null,null,null,null,"","",""]
[null,null,null,null,"","",""]
[null,null,null,null,"","",""]
[null,null,null,null,"","",""]
[null,null,null,null,"","",""]
[null,null,null,null,"","",""]
[null,null,null,null,"","",""]
[null,null,null,null,"","",""]
[null,null,null,null,{"$f":"IF(A861=\"\",\"\",C861/B861*100)","v":""},{"$f":"IF(A861=\"\",\"\",B861/D861)","v":""},{"$f":"IF(A861=\"\",\"\",C861/D861)","v":""}]
[null,null,null,null,"","",""]
[null,null,null,null,"","",""]
[null,null,null,null,"","",""]
[null,null,null,null,"","",""]
[null,null,null,null,"","",""]
[null,null,null,null,"","",""]
[null,null,null,null,"","",""]
[null,null,null,null,"","",""]
[null,null,null,null,"","",""]
[null,null,null,null,"","",""]
[null,null,null,null,"","",""]
[null,null,null,null,"","",""]
[null,null,null,null,"","",""]
[null,null,null,null,"","",""]
[null,null,null,null,"","",""]
[null,null,null,null,"","",""]
[null,null,null,null,"","",""]
[null,null,null,null,"","",""]
[null,null,null,null,"","",""]
[null,null,null,null,"","",""]
[null,null,null,null,"","",""]
[null,null,null,null,"","",""]
[null,null,null,null,"","",""]
[null,null,null,null,"","",""]
[null,null,null,null,"","",""]
[null,null,null,null,"","",""]
[null,null,null,null,"","",""]
[null,null,null,null,"","",""]
[null,null,null,null,"","",""]
[null,null,null,null,"","",""]
[null,null,null,null,"","",""]
[null,null,null,null,"","",""]
[null,null,null,null,"","",""]
[null,null,null,null,"","",""]
[null,null,null,null,"","",""]
[null,null,null,null,"","",""]
[null,null,null,null,"","",""]
[null,null,null,null,"","",""]
[null,null,null,null,"","",""]
[null,null,null,null,"","",""]
[null,null,null,null,"","",""]
[null,null,null,null,"","",""]
[null,null,null,null,"","",""]
[null,null,null,null,"","",""]
[null,null,null,null,"","",""]
[null,null,null,null,"","",""]
[null,null,null,null,"","",""]
[null,null,null,null,"","",""]
[null,null,null,null,"","",""]
[null,null,null,null,"","",""]
[null,null,null,null,"","",""]
[null,null,null,null,"","",""]
[null,null,null,null,"","",""]
[null,null,null,null,"","",""]
[null,null,null,null,"","",""]
[null,null,null,null,"","",""]
[null,null,null,null,"","",""]
[null,null,null,null,"","",""]
[null,null,null,null,"","",""]
[null,null,null,null,"","",""]
[null,null,null,null,"","",""]
[null,null,null,null,"","",""]
[null,null,null,null,"","",""]
[null,null,null,null,{"$f":"IF(A925=\"\",\"\",C925/B925*100)","v":""},{"$f":"IF(A925=\"\",\"\",B925/D925)","v":""},{"$f":"IF(A925=\"\",\"\",C925/D925)","v":""}]
[null,null,null,null,"","",""]
[null,null,null,null,"","",""]
[null,null,null,null,"","",""]
[null,null,null,null,"","",""]
[null,null,null,null,"","",""]
[null,null,null,null,"","",""]
[null,null,null,null,"","",""]
[null,null,null,null,"","",""]
[null,null,null,null,"","",""]
[null,null,null,null,"","",""]
[null,null,null,null,"","",""]
[null,null,null,null,"","",""]
[null,null,null,null,"","",""]
[null,null,null,null,"","",""]
[null,null,null,null,"","",""]
[null,null,null,null,"","",""]
[null,null,null,null,"","",""]
[null,null,null,null,"","",""]
[null,null,null,null,"","",""]
[null,null,null,null,"","",""]
[null,null,null,null,"","",""]
[null,null,null,null,"","",""]
[null,null,null,null,"","",""]
[null,null,null,null,"","",""]
[null,null,null,null,"","",""]
[null,null,null,null,"","",""]
[null,null,null,null,"","",""]
[null,null,null,null,"","",""]
[null,null,null,null,"","",""]
[null,null,null,null,"","",""]
[null,null,null,null,"","",""]
[null,null,null,null,"","",""]
[null,null,null,null,"","",""]
[null,null,null,null,"","",""]
[null,null,null,null,"","",""]
[null,null,null,null,"","",""]
[null,null,null,null,"","",""]
[null,null,null,null,"","",""]
[null,null,null,null,"","",""]
[null,null,null,null,"","",""]
[null,null,null,null,"","",""]
[null,null,null,null,"","",""]
[null,null,null,null,"","",""]
[null,null,null,null,"","",""]
[null,null,null,null,"","",""]
[null,null,null,null,"","",""]
[null,null,null,null,"","",""]
[null,null,null,null,"","",""]
[null,null,null,null,"","",""]
[null,null,null,null,"","",""]
[null,null,null,null,"","",""]
[null,null,null,null,"","",""]
[null,null,null,null,"","",""]
[null,null,null,null,"","",""]
[null,null,null,null,"","",""]
[null,null,null,null,"","",""]
[null,null,null,null,"","",""]
[null,null,null,null,"","",""]
[null,null,null,null,"","",""]
[null,null,null,null,"","",""]
[null,null,null,null,"","",""]
[null,null,null,null,"","",""]
[null,null,null,null,"","",""]
[null,null,null,null,{"$f":"IF(A989=\"\",\"\",C989/B989*100)","v":""},{"$f":"IF(A989=\"\",\"\",B989/D989)","v":""},{"$f":"IF(A989=\"\",\"\",C989/D989)","v":""}]
[null,null,null,null,"","",""]
[null,null,null,null,"","",""]
[null,null,null,null,"","",""]
[null,null,null,null,"","",""]
[null,null,null,null,"","",""]
[null,null,null,null,"","",""]
[null,null,null,null,"","",""]
[null,null,null,null,"","",""]
[null,null,null,null,"","",""]
[null,null,null,null,"","",""]
[null,null,null,null,"","",""]
[null,null,null,null,"","",""]
[null,null,null,null,"","",""]
[null,null,null,null,"","",""]
[null,null,null,null,"","",""]
[null,null,null,null,"","",""]
[null,null,null,null,"","",""]
[null,null,null,null,"","",""]
[null,null,null,null,"","",""]
[null,null,null,null,"","",""]
[null,null,null,null,"","",""]
[null,null,null,null,"","",""]
[null,null,null,null,"","",""]
[null,null,null,null,"","",""]
[null,null,null,null,"","",""]
[null,null,null,null,"","",""]
[null,null,null,null,"","",""]
[null,null,null,null,"","",""]
[null,null,null,null,"","",""]
[null,null,null,null,"","",""]
[null,null,null,null,"","",""]
[null,null,null,null,"","",""]
[null,null,null,null,"","",""]
[null,null,null,null,"","",""]
[null,null,null,null,"","",""]
[null,null,null,null,"","",""]
[null,null,null,null,"","",""]
[null,null,null,null,"","",""]
[null,null,null,null,"","",""]
[null,null,null,null,"","",""]
[null,null,null,null,"","",""]
[null,null,null,null,"","",""]
[null,null,null,null,"","",""]
[null,null,null,null,"","",""]
[null,null,null,null,"","",""]
[null,null,null,null,"","",""]
[null,null,null,null,"","",""]
[null,null,null,null,"","",""]
[null,null,null,null,"","",""]
[null,null,null,null,"","",""]
[null,null,null,null,"","",""]
[null,null,null,null,"","",""]
[null,null,null,null,"","",""]
[null,null,null,null,"","",""]
[null,null,null,null,"","",""]
[null,null,null,null,"","",""]
[null,null,null,null,"","",""]
[null,null,null,null,"","",""]
[null,null,null,null,"","",""]
[null,null,null,null,"","",""]
[null,null,null,null,"","",""]
[null,null,null,null,"","",""]
[null,null,null,null,"","",""]
[null,null,null,null,{"$f":"IF(A1053=\"\",\"\",C1053/B1053*100)","v":""},{"$f":"IF(A1053=\"\",\"\",B1053/D1053)","v":""},{"$f":"IF(A1053=\"\",\"\",C1053/D1053)","v":""}]
[null,null,null,null,"","",""]
[null,null,null,null,"","",""]
[null,null,null,null,"","",""]
[null,null,null,null,"","",""]
[null,null,null,null,"","",""]
[null,null,null,null,"","",""]
[null,null,null,null,"","",""]
[null,null,null,null,"","",""]
[null,null,null,null,"","",""]
[null,null,null,null,"","",""]
[null,null,null,null,"","",""]
[null,null,null,null,"","",""]
[null,null,null,null,"","",""]
[null,null,null,null,"","",""]
[null,null,null,null,"","",""]
[null,null,null,null,"","",""]
[null,null,null,null,"","",""]
[null,null,null,null,"","",""]
[null,null,null,null,"","",""]
[null,null,null,null,"","",""]
[null,null,null,null,"","",""]
[null,null,null,null,"","",""]
[null,null,null,null,"","",""]
[null,null,null,null,"","",""]
[null,null,null,null,"","",""]
[null,null,null,null,"","",""]
[null,null,null,null,"","",""]
[null,null,null,null,"","",""]
[null,null,null,null,"","",""]
[null,null,null,null,"","",""]
[null,null,null,null,"","",""]
[null,null,null,null,"","",""]
[null,null,null,null,"","",""]
[null,null,null,null,"","",""]
[null,null,null,null,"","",""]
[null,null,null,null,"","",""]
[null,null,null,null,"","",""]
[null,null,null,null,"","",""]
[null,null,null,null,"","",""]
[null,null,null,null,"","",""]
[null,null,null,null,"","",""]
[null,null,null,null,"","",""]
[null,null,null,null,"","",""]
[null,null,null,null,"","",""]
[null,null,null,null,"","",""]
[null,null,null,null,"","",""]
[null,null,null,null,"","",""]
[null,null,null,null,"","",""]
[null,null,null,null,"","",""]
[null,null,null,null,"","",""]
[null,null,null,null,"","",""]
[null,null,null,null,"","",""]
[null,null,null,null,"","",""]
[null,null,null,null,"","",""]
[null,null,null,null,"","",""]
[null,null,null,null,"","",""]
[null,null,null,null,"","",""]
[null,null,null,null,"","",""]
[null,null,null,null,"","",""]
[null,null,null,null,"","",""]
[null,null,null,null,"","",""]
[null,null,null,null,"","",""]
[null,null,null,null,"","",""]
[null,null,null,null,{"$f":"IF(A1117=\"\",\"\",C1117/B1117*100)","v":""},{"$f":"IF(A1117=\"\",\"\",B1117/D1117)","v":""},{"$f":"IF(A1117=\"\",\"\",C1117/D1117)","v":""}]
[null,null,null,null,"","",""]
[null,null,null,null,"","",""]
[null,null,null,null,"","",""]
[null,null,null,null,"","",""]
[null,null,null,null,"","",""]
[null,null,null,null,"","",""]
[null,null,null,null,"","",""]
[null,null,null,null,"","",""]
[null,null,null,null,"","",""]
[null,null,null,null,"","",""]
[null,null,null,null,"","",""]
[null,null,null,null,"","",""]
[null,null,null,null,"","",""]
[null,null,null,null,"","",""]
[null,null,null,null,"","",""]
[null,null,null,null,"","",""]
[null,null,null,null,"","",""]
[null,null,null,null,"","",""]
[null,null,null,null,"","",""]
[null,null,null,null,"","",""]
[null,null,null,null,"","",""]
[null,null,null,null,"","",""]
[null,null,null,null,"","",""]
[null,null,null,null,"","",""]
[null,null,null,null,"","",""]
[null,null,null,null,"","",""]
[null,null,null,null,"","",""]
[null,null,null,null,"","",""]
[null,null,null,null,"","",""]
[null,null,null,null,"","",""]
[null,null,null,null,"","",""]
[null,null,null,null,"","",""]
[null,null,null,null,"","",""]
[null,null,null,null,"","",""]
[null,null,null,null,"","",""]
[null,null,null,null,"","",""]
[null,null,null,null,"","",""]
[null,null,null,null,"","",""]
[null,null,null,null,"","",""]
[null,null,null,null,"","",""]
[null,null,null,null,"","",""]
[null,null,null,null,"","",""]
[null,null,null,null,"","",""]
[null,null,null,null,"","",""]
[null,null,null,null,"","",""]
[null,null,null,null,"","",""]
[null,null,null,null,"","",""]
[null,null,null,null,"","",""]
[null,null,null,null,"","",""]
[null,null,null,null,"","",""]
[null,null,null,null,"","",""]
[null,null,null,null,"","",""]
[null,null,null,null,"","",""]
[null,null,null,null,"","",""]
[null,null,null,null,"","",""]
[null,null,null,null,"","",""]
[null,null,null,null,"","",""]
[null,null,null,null,"","",""]
[null,null,null,null,"","",""]
[null,null,null,null,"","",""]
[null,null,null,null,"","",""]
[null,null,null,null,"","",""]
[null,null,null,null,"","",""]
[null,null,null,null,{"$f":"IF(A1181=\"\",\"\",C1181/B1181*100)","v":""},{"$f":"IF(A1181=\"\",\"\",B1181/D1181)","v":""},{"$f":"IF(A1181=\"\",\"\",C1181/D1181)","v":""}]
[null,null,null,null,"","",""]
[null,null,null,null,"","",""]
[null,null,null,null,"","",""]
[null,null,null,null,"","",""]
[null,null,null,null,"","",""]
[null,null,null,null,"","",""]
[null,null,null,null,"","",""]
[null,null,null,null,"","",""]
[null,null,null,null,"","",""]
[null,null,null,null,"","",""]
[null,null,null,null,"","",""]
[null,null,null,null,"","",""]
[null,null,null,null,"","",""]
[null,null,null,null,"","",""]
[null,null,null,null,"","",""]
[null,null,null,null,"","",""]
[null,null,null,null,"","",""]
[null,null,null,null,"","",""]
[null,null,null,null,"","",""]
[null,null,null,null,"","",""]
[null,null,null,null,"","",""]
[null,null,null,null,"","",""]
[null,null,null,null,"","",""]
[null,null,null,null,"","",""]
[null,null,null,null,"","",""]
[null,null,null,null,"","",""]
[null,null,null,null,"","",""]
[null,null,null,null,"","",""]
[null,null,null,null,"","",""]
[null,null,null,null,"","",""]
[null,null,null,null,"","",""]
[null,null,null,null,"","",""]
[null,null,null,null,"","",""]
[null,null,null,null,"","",""]
[null,null,null,null,"","",""]
[null,null,null,null,"","",""]
[null,null,null,null,"","",""]
[null,null,null,null,"","",""]
[null,null,null,null,"","",""]
[null,null,null,null,"","",""]
[null,null,null,null,"","",""]
[null,null,null,null,"","",""]
[null,null,null,null,"","",""]
[null,null,null,null,"","",""]
[null,null,null,null,"","",""]
[null,null,null,null,"","",""]
[null,null,null,null,"","",""]
[null,null,null,null,"","",""]
[null,null,null,null,"","",""]
[null,null,null,null,"","",""]
[null,null,null,null,"","",""]
[null,null,null,null,"","",""]
[null,null,null,null,"","",""]
[null,null,null,null,"","",""]
[null,null,null,null,"","",""]
[null,null,null,null,"","",""]
[null,null,null,null,"","",""]
[null,null,null,null,"","",""]
[null,null,null,null,"","",""]
[null,null,null,null,"","",""]
[null,null,null,null,"","",""]
[null,null,null,null,"","",""]
[null,null,null,null,"","",""]
[null,null,null,null,{"$f":"IF(A1245=\"\",\"\",C1245/B1245*100)","v":""},{"$f":"IF(A1245=\"\",\"\",B1245/D1245)","v":""},{"$f":"IF(A1245=\"\",\"\",C1245/D1245)","v":""}]
[null,null,null,null,"","",""]
[null,null,null,null,"","",""]
[null,null,null,null,"","",""]
[null,null,null,null,"","",""]
[null,null,null,null,"","",""]
[null,null,null,null,"","",""]
[null,null,null,null,"","",""]
[null,null,null,null,"","",""]
[null,null,null,null,"","",""]
[null,null,null,null,"","",""]
[null,null,null,null,"","",""]
[null,null,null,null,"","",""]
[null,null,null,null,"","",""]
[null,null,null,null,"","",""]
[null,null,null,null,"","",""]
[null,null,null,null,"","",""]
[null,null,null,null,"","",""]
[null,null,null,null,"","",""]
[null,null,null,null,"","",""]
[null,null,null,null,"","",""]
[null,null,null,null,"","",""]
[null,null,null,null,"","",""]
[null,null,null,null,"","",""]
[null,null,null,null,"","",""]
[null,null,null,null,"","",""]
[null,null,null,null,"","",""]
[null,null,null,null,"","",""]
[null,null,null,null,"","",""]
[null,null,null,null,"","",""]
[null,null,null,null,"","",""]
[null,null,null,null,"","",""]
[null,null,null,null,"","",""]
[null,null,null,null,"","",""]
[null,null,null,null,"","",""]
[null,null,null,null,"","",""]
[null,null,null,null,"","",""]
[null,null,null,null,"","",""]
[null,null,null,null,"","",""]
[null,null,null,null,"","",""]
[null,null,null,null,"","",""]
[null,null,null,null,"","",""]
[null,null,null,null,"","",""]
[null,null,null,null,"","",""]
[null,null,null,null,"","",""]
[null,null,null,null,"","",""]
[null,null,null,null,"","",""]
[null,null,null,null,"","",""]
[null,null,null,null,"","",""]
[null,null,null,null,"","",""]
[null,null,null,null,"","",""]
[null,null,null,null,"","",""]
[null,null,null,null,"","",""]
[null,null,null,null,"","",""]
[null,null,null,null,"","",""]
[null,null,null,null,"","",""]
[null,null,null,null,"","",""]
[null,null,null,null,"","",""]
[null,null,null,null,"","",""]
[null,null,null,null,"","",""]
[null,null,null,null,"","",""]
[null,null,null,null,"","",""]
[null,null,null,null,"","",""]
[null,null,null,null,"","",""]
[null,null,null,null,{"$f":"IF(A1309=\"\",\"\",C1309/B1309*100)","v":""},{"$f":"IF(A1309=\"\",\"\",B1309/D1309)","v":""},{"$f":"IF(A1309=\"\",\"\",C1309/D1309)","v":""}]
[null,null,null,null,"","",""]
[null,null,null,null,"","",""]
[null,null,null,null,"","",""]
[null,null,null,null,"","",""]
[null,null,null,null,"","",""]
[null,null,null,null,"","",""]
[null,null,null,null,"","",""]
[null,null,null,null,"","",""]
[null,null,null,null,"","",""]
[null,null,null,null,"","",""]
[null,null,null,null,"","",""]
[null,null,null,null,"","",""]
[null,null,null,null,"","",""]
[null,null,null,null,"","",""]
[null,null,null,null,"","",""]
[null,null,null,null,"","",""]
[null,null,null,null,"","",""]
[null,null,null,null,"","",""]
[null,null,null,null,"","",""]
[null,null,null,null,"","",""]
[null,null,null,null,"","",""]
[null,null,null,null,"","",""]
[null,null,null,null,"","",""]
[null,null,null,null,"","",""]
[null,null,null,null,"","",""]
[null,null,null,null,"","",""]
[null,null,null,null,"","",""]
[null,null,null,null,"","",""]
[null,null,null,null,"","",""]
[null,null,null,null,"","",""]
[null,null,null,null,"","",""]
[null,null,null,null,"","",""]
[null,null,null,null,"","",""]
[null,null,null,null,"","",""]
[null,null,null,null,"","",""]
[null,null,null,null,"","",""]
[null,null,null,null,"","",""]
[null,null,null,null,"","",""]
[null,null,null,null,"","",""]
[null,null,null,null,"","",""]
[null,null,null,null,"","",""]
[null,null,null,null,"","",""]
[null,null,null,null,"","",""]
[null,null,null,null,"","",""]
[null,null,null,null,"","",""]
[null,null,null,null,"","",""]
[null,null,null,null,"","",""]
[null,null,null,null,"","",""]
[null,null,null,null,"","",""]
[null,null,null,null,"","",""]
[null,null,null,null,"","",""]
[null,null,null,null,"","",""]
[null,null,null,null,"","",""]
[null,null,null,null,"","",""]
[null,null,null,null,"","",""]
[null,null,null,null,"","",""]
[null,null,null,null,"","",""]
[null,null,null,null,"","",""]
[null,null,null,null,"","",""]
[null,null,null,null,"","",""]
[null,null,null,null,"","",""]
[null,null,null,null,"","",""]
[null,null,null,null,"","",""]
[null,null,null,null,{"$f":"IF(A1373=\"\",\"\",C1373/B1373*100)","v":""},{"$f":"IF(A1373=\"\",\"\",B1373/D1373)","v":""},{"$f":"IF(A1373=\"\",\"\",C1373/D1373)","v":""}]
[null,null,null,null,"","",""]
[null,null,null,null,"","",""]
[null,null,null,null,"","",""]
[null,null,null,null,"","",""]
[null,null,null,null,"","",""]
[null,null,null,null,"","",""]
[null,null,null,null,"","",""]
[null,null,null,null,"","",""]
[null,null,null,null,"","",""]
[null,null,null,null,"","",""]
[null,null,null,null,"","",""]
[null,null,null,null,"","",""]
[null,null,null,null,"","",""]
[null,null,null,null,"","",""]
[null,null,null,null,"","",""]
[null,null,null,null,"","",""]
[null,null,null,null,"","",""]
[null,null,null,null,"","",""]
[null,null,null,null,"","",""]
[null,null,null,null,"","",""]
[null,null,null,null,"","",""]
[null,null,null,null,"","",""]
[null,null,null,null,"","",""]
[null,null,null,null,"","",""]
[null,null,null,null,"","",""]
[null,null,null,null,"","",""]
[null,null,null,null,"","",""]
[null,null,null,null,"","",""]
[null,null,null,null,"","",""]
[null,null,null,null,"","",""]
[null,null,null,null,"","",""]
[null,null,null,null,"","",""]
[null,null,null,null,"","",""]
[null,null,null,null,"","",""]
[null,null,null,null,"","",""]
[null,null,null,null,"","",""]
[null,null,null,null,"","",""]
[null,null,null,null,"","",""]
[null,null,null,null,"","",""]
[null,null,null,null,"","",""]
[null,null,null,null,"","",""]
[null,null,null,null,"","",""]
[null,null,null,null,"","",""]
[null,null,null,null,"","",""]
[null,null,null,null,"","",""]
[null,null,null,null,"","",""]
[null,null,null,null,"","",""]
[null,null,null,null,"","",""]
[null,null,null,null,"","",""]
[null,null,null,null,"","",""]
[null,null,null,null,"","",""]
[null,null,null,null,"","",""]
[null,null,null,null,"","",""]
[null,null,null,null,"","",""]
[null,null,null,null,"","",""]
[null,null,null,null,"","",""]
[null,null,null,null,"","",""]
[null,null,null,null,"","",""]
[null,null,null,null,"","",""]
[null,null,null,null,"","",""]
[null,null,null,null,"","",""]
[null,null,null,null,"","",""]
[null,null,null,null,"","",""]
[null,null,null,null,{"$f":"IF(A1437=\"\",\"\",C1437/B1437*100)","v":""},{"$f":"IF(A1437=\"\",\"\",B1437/D1437)","v":""},{"$f":"IF(A1437=\"\",\"\",C1437/D1437)","v":""}]
[null,null,null,null,"","",""]
[null,null,null,null,"","",""]
[null,null,null,null,"","",""]
[null,null,null,null,"","",""]
[null,null,null,null,"","",""]
[null,null,null,null,"","",""]
[null,null,null,null,"","",""]
[null,null,null,null,"","",""]
[null,null,null,null,"","",""]
[null,null,null,null,"","",""]
[null,null,null,null,"","",""]
[null,null,null,null,"","",""]
[null,null,null,null,"","",""]
[null,null,null,null,"","",""]
[null,null,null,null,"","",""]
[null,null,null,null,"","",""]
[null,null,null,null,"","",""]
[null,null,null,null,"","",""]
[null,null,null,null,"","",""]
[null,null,null,null,"","",""]
[null,null,null,null,"","",""]
[null,null,null,null,"","",""]
[null,null,null,null,"","",""]
[null,null,null,null,"","",""]
[null,null,null,null,"","",""]
[null,null,null,null,"","",""]
[null,null,null,null,"","",""]
[null,null,null,null,"","",""]
[null,null,null,null,"","",""]
[null,null,null,null,"","",""]
[null,null,null,null,"","",""]
[null,null,null,null,"","",""]
[null,null,null,null,"","",""]
[null,null,null,null,"","",""]
[null,null,null,null,"","",""]
[null,null,null,null,"","",""]
[null,null,null,null,"","",""]
[null,null,null,null,"","",""]
[null,null,null,null,"","",""]
[null,null,null,null,"","",""]
[null,null,null,null,"","",""]
[null,null,null,null,"","",""]
[null,null,null,null,"","",""]
[null,null,null,null,"","",""]
[null,null,null,null,"","",""]
[null,null,null,null,"","",""]
[null,null,null,null,"","",""]
[null,null,null,null,"","",""]
[null,null,null,null,"","",""]
[null,null,null,null,"","",""]
[null,null,null,null,"","",""]
[null,null,null,null,"","",""]
[null,null,null,null,"","",""]
[null,null,null,null,"","",""]
[null,null,null,null,"","",""]
[null,null,null,null,"","",""]
[null,null,null,null,"","",""]
[null,null,null,null,"","",""]
[null,null,null,null,"","",""]
[null,null,null,null,"","",""]
[null,null,null,null,"","",""]
[null,null,null,null,"","",""]
[null,null,null,null,"","",""]
[null,null,null,null,{"$f":"IF(A1501=\"\",\"\",C1501/B1501*100)","v":""},{"$f":"IF(A1501=\"\",\"\",B1501/D1501)","v":""},{"$f":"IF(A1501=\"\",\"\",C1501/D1501)","v":""}]
[null,null,null,null,"","",""]
[null,null,null,null,"","",""]
[null,null,null,null,"","",""]
[null,null,null,null,"","",""]
[null,null,null,null,"","",""]
[null,null,null,null,"","",""]
[null,null,null,null,"","",""]
[null,null,null,null,"","",""]
[null,null,null,null,"","",""]
[null,null,null,null,"","",""]
[null,null,null,null,"","",""]
[null,null,null,null,"","",""]
[null,null,null,null,"","",""]
[null,null,null,null,"","",""]
[null,null,null,null,"","",""]
[null,null,null,null,"","",""]
[null,null,null,null,"","",""]
[null,null,null,null,"","",""]
[null,null,null,null,"","",""]
[null,null,null,null,"","",""]
[null,null,null,null,"","",""]
[null,null,null,null,"","",""]
[null,null,null,null,"","",""]
[null,null,null,null,"","",""]
[null,null,null,null,"","",""]
[null,null,null,null,"","",""]
[null,null,null,null,"","",""]
[null,null,null,null,"","",""]
[null,null,null,null,"","",""]
[null,null,null,null,"","",""]
[null,null,null,null,"","",""]
[null,null,null,null,"","",""]
[null,null,null,null,"","",""]
[null,null,null,null,"","",""]
[null,null,null,null,"","",""]
[null,null,null,null,"","",""]
[null,null,null,null,"","",""]
[null,null,null,null,"","",""]
[null,null,null,null,"","",""]
[null,null,null,null,"","",""]
[null,null,null,null,"","",""]
[null,null,null,null,"","",""]
[null,null,null,null,"","",""]
[null,null,null,null,"","",""]
[null,null,null,null,"","",""]
[null,null,null,null,"","",""]
[null,null,null,null,"","",""]
[null,null,null,null,"","",""]
[null,null,null,null,"","",""]
[null,null,null,null,"","",""]
[null,null,null,null,"","",""]
[null,null,null,null,"","",""]
[null,null,null,null,"","",""]
[null,null,null,null,"","",""]
[null,null,null,null,"","",""]
[null,null,null,null,"","",""]
[null,null,null,null,"","",""]
[null,null,null,null,"","",""]
[null,null,null,null,"","",""]
[null,null,null,null,"","",""]
[null,null,null,null,"","",""]
[null,null,null,null,"","",""]
[null,null,null,null,"","",""]
[null,null,null,null,{"$f":"IF(A1565=\"\",\"\",C1565/B1565*100)","v":""},{"$f":"IF(A1565=\"\",\"\",B1565/D1565)","v":""},{"$f":"IF(A1565=\"\",\"\",C1565/D1565)","v":""}]
[null,null,null,null,"","",""]
[null,null,null,null,"","",""]
[null,null,null,null,"","",""]
[null,null,null,null,"","",""]
[null,null,null,null,"","",""]
[null,null,null,null,"","",""]
[null,null,null,null,"","",""]
[null,null,null,null,"","",""]
[null,null,null,null,"","",""]
[null,null,null,null,"","",""]
[null,null,null,null,"","",""]
[null,null,null,null,"","",""]
[null,null,null,null,"","",""]
[null,null,null,null,"","",""]
[null,null,null,null,"","",""]
[null,null,null,null,"","",""]
[null,null,null,null,"","",""]
[null,null,null,null,"","",""]
[null,null,null,null,"","",""]
[null,null,null,null,"","",""]
[null,null,null,null,"","",""]
[null,null,null,null,"","",""]
[null,null,null,null,"","",""]
[null,null,null,null,"","",""]
[null,null,null,null,"","",""]
[null,null,null,null,"","",""]
[null,null,null,null,"","",""]
[null,null,null,null,"","",""]
[null,null,null,null,"","",""]
[null,null,null,null,"","",""]
[null,null,null,null,"","",""]
[null,null,null,null,"","",""]
[null,null,null,null,"","",""]
[null,null,null,null,"","",""]
[null,null,null,null,"","",""]
[null,null,null,null,"","",""]
[null,null,null,null,"","",""]
[null,null,null,null,"","",""]
[null,null,null,null,"","",""]
[null,null,null,null,"","",""]
[null,null,null,null,"","",""]
[null,null,null,null,"","",""]
[null,null,null,null,"","",""]
[null,null,null,null,"","",""]
[null,null,null,null,"","",""]
[null,null,null,null,"","",""]
[null,null,null,null,"","",""]
[null,null,null,null,"","",""]
[null,null,null,null,"","",""]
[null,null,null,null,"","",""]
[null,null,null,null,"","",""]
[null,null,null,null,"","",""]
[null,null,null,null,"","",""]
[null,null,null,null,"","",""]
[null,null,null,null,"","",""]
[null,null,null,null,"","",""]
[null,null,null,null,"","",""]
[null,null,null,null,"","",""]
[null,null,null,null,"","",""]
[null,null,null,null,"","",""]
[null,null,null,null,"","",""]
[null,null,null,null,"","",""]
[null,null,null,null,"","",""]
[null,null,null,null,{"$f":"IF(A1629=\"\",\"\",C1629/B1629*100)","v":""},{"$f":"IF(A1629=\"\",\"\",B1629/D1629)","v":""},{"$f":"IF(A1629=\"\",\"\",C1629/D1629)","v":""}]
[null,null,null,null,"","",""]
[null,null,null,null,"","",""]
[null,null,null,null,"","",""]
[null,null,null,null,"","",""]
[null,null,null,null,"","",""]
[null,null,null,null,"","",""]
[null,null,null,null,"","",""]
[null,null,null,null,"","",""]
[null,null,null,null,"","",""]
[null,null,null,null,"","",""]
[null,null,null,null,"","",""]
[null,null,null,null,"","",""]
[null,null,null,null,"","",""]
[null,null,null,null,"","",""]
[null,null,null,null,"","",""]
[null,null,null,null,"","",""]
[null,null,null,null,"","",""]
[null,null,null,null,"","",""]
[null,null,null,null,"","",""]
[null,null,null,null,"","",""]
[null,null,null,null,"","",""]
[null,null,null,null,"","",""]
[null,null,null,null,"","",""]
[null,null,null,null,"","",""]
[null,null,null,null,"","",""]
[null,null,null,null,"","",""]
[null,null,null,null,"","",""]
[null,null,null,null,"","",""]
[null,null,null,null,"","",""]
[null,null,null,null,"","",""]
[null,null,null,null,"","",""]
[null,null,null,null,"","",""]
[null,null,null,null,"","",""]
[null,null,null,null,"","",""]
[null,null,null,null,"","",""]
[null,null,null,null,"","",""]
[null,null,null,null,"","",""]
[null,null,null,null,"","",""]
[null,null,null,null,"","",""]
[null,null,null,null,"","",""]
[null,null,null,null,"","",""]
[null,null,null,null,"","",""]
[null,null,null,null,"","",""]
[null,null,null,null,"","",""]
[null,null,null,null,"","",""]
[null,null,null,null,"","",""]
[null,null,null,null,"","",""]
[null,null,null,null,"","",""]
[null,null,null,null,"","",""]
[null,null,null,null,"","",""]
[null,null,null,null,"","",""]
[null,null,null,null,"","",""]
[null,null,null,null,"","",""]
[null,null,null,null,"","",""]
[null,null,null,null,"","",""]
[null,null,null,null,"","",""]
[null,null,null,null,"","",""]
[null,null,null,null,"","",""]
[null,null,null,null,"","",""]
[null,null,null,null,"","",""]
[null,null,null,null,"","",""]
[null,null,null,null,"","",""]
[null,null,null,null,"","",""]
[null,null,null,null,{"$f":"IF(A1693=\"\",\"\",C1693/B1693*100)","v":""},{"$f":"IF(A1693=\"\",\"\",B1693/D1693)","v":""},{"$f":"IF(A1693=\"\",\"\",C1693/D1693)","v":""}]
[null,null,null,null,"","",""]
[null,null,null,null,"","",""]
[null,null,null,null,"","",""]
[null,null,null,null,"","",""]
[null,null,null,null,"","",""]
[null,null,null,null,"","",""]
[null,null,null,null,"","",""]
[null,null,null,null,"","",""]
[null,null,null,null,"","",""]
[null,null,null,null,"","",""]
[null,null,null,null,"","",""]
[null,null,null,null,"","",""]
[null,null,null,null,"","",""]
[null,null,null,null,"","",""]
[null,null,null,null,"","",""]
[null,null,null,null,"","",""]
[null,null,null,null,"","",""]
[null,null,null,null,"","",""]
[null,null,null,null,"","",""]
[null,null,null,null,"","",""]
[null,null,null,null,"","",""]
[null,null,null,null,"","",""]
[null,null,null,null,"","",""]
[null,null,null,null,"","",""]
[null,null,null,null,"","",""]
[null,null,null,null,"","",""]
[null,null,null,null,"","",""]
[null,null,null,null,"","",""]
[null,null,null,null,"","",""]
[null,null,null,null,"","",""]
[null,null,null,null,"","",""]
[null,null,null,null,"","",""]
[null,null,null,null,"","",""]
[null,null,null,null,"","",""]
[null,null,null,null,"","",""]
[null,null,null,null,"","",""]
[null,null,null,null,"","",""]
[null,null,null,null,"","",""]
[null,null,null,null,"","",""]
[null,null,null,null,"","",""]
[null,null,null,null,"","",""]
[null,null,null,null,"","",""]
[null,null,null,null,"","",""]
[null,null,null,null,"","",""]
[null,null,null,null,"","",""]
[null,null,null,null,"","",""]
[null,null,null,null,"","",""]
[null,null,null,null,"","",""]
[null,null,null,null,"","",""]
[null,null,null,null,"","",""]
[null,null,null,null,"","",""]
[null,null,null,null,"","",""]
[null,null,null,null,"","",""]
[null,null,null,null,"","",""]
[null,null,null,null,"","",""]
[null,null,null,null,"","",""]
[null,null,null,null,"","",""]
[null,null,null,null,"","",""]
[null,null,null,null,"","",""]
[null,null,null,null,"","",""]
[null,null,null,null,"","",""]
[null,null,null,null,"","",""]
[null,null,null,null,"","",""]
[null,null,null,null,{"$f":"IF(A1757=\"\",\"\",C1757/B1757*100)","v":""},{"$f":"IF(A1757=\"\",\"\",B1757/D1757)","v":""},{"$f":"IF(A1757=\"\",\"\",C1757/D1757)","v":""}]
[null,null,null,null,"","",""]
[null,null,null,null,"","",""]
[null,null,null,null,"","",""]
[null,null,null,null,"","",""]
[null,null,null,null,"","",""]
[null,null,null,null,"","",""]
[null,null,null,null,"","",""]
[null,null,null,null,"","",""]
[null,null,null,null,"","",""]
[null,null,null,null,"","",""]
[null,null,null,null,"","",""]
[null,null,null,null,"","",""]
[null,null,null,null,"","",""]
[null,null,null,null,"","",""]
[null,null,null,null,"","",""]
[null,null,null,null,"","",""]
[null,null,null,null,"","",""]
[null,null,null,null,"","",""]
[null,null,null,null,"","",""]
[null,null,null,null,"","",""]
[null,null,null,null,"","",""]
[null,null,null,null,"","",""]
[null,null,null,null,"","",""]
[null,null,null,null,"","",""]
[null,null,null,null,"","",""]
[null,null,null,null,"","",""]
[null,null,null,null,"","",""]
[null,null,null,null,"","",""]
[null,null,null,null,"","",""]
[null,null,null,null,"","",""]
[null,null,null,null,"","",""]
[null,null,null,null,"","",""]
[null,null,null,null,"","",""]
[null,null,null,null,"","",""]
[null,null,null,null,"","",""]
[null,null,null,null,"","",""]
[null,null,null,null,"","",""]
[null,null,null,null,"","",""]
[null,null,null,null,"","",""]
[null,null,null,null,"","",""]
[null,null,null,null,"","",""]
[null,null,null,null,"","",""]
[null,null,null,null,"","",""]
[null,null,null,null,"","",""]
[null,null,null,null,"","",""]
[null,null,null,null,"","",""]
[null,null,null,null,"","",""]
[null,null,null,null,"","",""]
[null,null,null,null,"","",""]
[null,null,null,null,"","",""]
[null,null,null,null,"","",""]
[null,null,null,null,"","",""]
[null,null,null,null,"","",""]
[null,null,null,null,"","",""]
[null,null,null,null,"","",""]
[null,null,null,null,"","",""]
[null,null,null,null,"","",""]
[null,null,null,null,"","",""]
[null,null,null,null,"","",""]
[null,null,null,null,"","",""]
[null,null,null,null,"","",""]
[null,null,null,null,"","",""]
[null,null,null,null,"","",""]
[null,null,null,null,{"$f":"IF(A1821=\"\",\"\",C1821/B1821*100)","v":""},{"$f":"IF(A1821=\"\",\"\",B1821/D1821)","v":""},{"$f":"IF(A1821=\"\",\"\",C1821/D1821)","v":""}]
[null,null,null,null,"","",""]
[null,null,null,null,"","",""]
[null,null,null,null,"","",""]
[null,null,null,null,"","",""]
[null,null,null,null,"","",""]
[null,null,null,null,"","",""]
[null,null,null,null,"","",""]
[null,null,null,null,"","",""]
[null,null,null,null,"","",""]
[null,null,null,null,"","",""]
[null,null,null,null,"","",""]
[null,null,null,null,"","",""]
[null,null,null,null,"","",""]
[null,null,null,null,"","",""]
[null,null,null,null,"","",""]
[null,null,null,null,"","",""]
[null,null,null,null,"","",""]
[null,null,null,null,"","",""]
[null,null,null,null,"","",""]
[null,null,null,null,"","",""]
[null,null,null,null,"","",""]
[null,null,null,null,"","",""]
[null,null,null,null,"","",""]
[null,null,null,null,"","",""]
[null,null,null,null,"","",""]
[null,null,null,null,"","",""]
[null,null,null,null,"","",""]
[null,null,null,null,"","",""]
[null,null,null,null,"","",""]
[null,null,null,null,"","",""]
[null,null,null,null,"","",""]
[null,null,null,null,"","",""]
[null,null,null,null,"","",""]
[null,null,null,null,"","",""]
[null,null,null,null,"","",""]
[null,null,null,null,"","",""]
[null,null,null,null,"","",""]
[null,null,null,null,"","",""]
[null,null,null,null,"","",""]
[null,null,null,null,"","",""]
[null,null,null,null,"","",""]
[null,null,null,null,"","",""]
[null,null,null,null,"","",""]
[null,null,null,null,"","",""]
[null,null,null,null,"","",""]
[null,null,null,null,"","",""]
[null,null,null,null,"","",""]
[null,null,null,null,"","",""]
[null,null,null,null,"","",""]
[null,null,null,null,"","",""]
[null,null,null,null,"","",""]
[null,null,null,null,"","",""]
[null,null,null,null,"","",""]
[null,null,null,null,"","",""]
[null,null,null,null,"","",""]
[null,null,null,null,"","",""]
[null,null,null,null,"","",""]
[null,null,null,null,"","",""]
[null,null,null,null,"","",""]
[null,null,null,null,"","",""]
[null,null,null,null,"","",""]
[null,null,null,null,"","",""]
[null,null,null,null,"","",""]
[null,null,null,null,{"$f":"IF(A1885=\"\",\"\",C1885/B1885*100)","v":""},{"$f":"IF(A1885=\"\",\"\",B1885/D1885)","v":""},{"$f":"IF(A1885=\"\",\"\",C1885/D1885)","v":""}]
[null,null,null,null,"","",""]
[null,null,null,null,"","",""]
[null,null,null,null,"","",""]
[null,null,null,null,"","",""]
[null,null,null,null,"","",""]
[null,null,null,null,"","",""]
[null,null,null,null,"","",""]
[null,null,null,null,"","",""]
[null,null,null,null,"","",""]
[null,null,null,null,"","",""]
[null,null,null,null,"","",""]
[null,null,null,null,"","",""]
[null,null,null,null,"","",""]
[null,null,null,null,"","",""]
[null,null,null,null,"","",""]
[null,null,null,null,"","",""]
[null,null,null,null,"","",""]
[null,null,null,null,"","",""]
[null,null,null,null,"","",""]
[null,null,null,null,"","",""]
[null,null,null,null,"","",""]
[null,null,null,null,"","",""]
[null,null,null,null,"","",""]
[null,null,null,null,"","",""]
[null,null,null,null,"","",""]
[null,null,null,null,"","",""]
[null,null,null,null,"","",""]
[null,null,null,null,"","",""]
[null,null,null,null,"","",""]
[null,null,null,null,"","",""]
[null,null,null,null,"","",""]
[null,null,null,null,"","",""]
[null,null,null,null,"","",""]
[null,null,null,null,"","",""]
[null,null,null,null,"","",""]
[null,null,null,null,"","",""]
[null,null,null,null,"","",""]
[null,null,null,null,"","",""]
[null,null,null,null,"","",""]
[null,null,null,null,"","",""]
[null,null,null,null,"","",""]
[null,null,null,null,"","",""]
[null,null,null,null,"","",""]
[null,null,null,null,"","",""]
[null,null,null,null,"","",""]
[null,null,null,null,"","",""]
[null,null,null,null,"","",""]
[null,null,null,null,"","",""]
[null,null,null,null,"","",""]
[null,null,null,null,"","",""]
[null,null,null,null,"","",""]
[null,null,null,null,"","",""]
[null,null,null,null,"","",""]
[null,null,null,null,"","",""]
[null,null,null,null,"","",""]
[null,null,null,null,"","",""]
[null,null,null,null,"","",""]
[null,null,null,null,"","",""]
[null,null,null,null,"","",""]
[null,null,null,null,"","",""]
[null,null,null,null,"","",""]
[null,null,null,null,"","",""]
[null,null,null,null,"","",""]
[null,null,null,null,{"$f":"IF(A1949=\"\",\"\",C1949/B1949*100)","v":""},{"$f":"IF(A1949=\"\",\"\",B1949/D1949)","v":""},{"$f":"IF(A1949=\"\",\"\",C1949/D1949)","v":""}]
[null,null,null,null,"","",""]
[null,null,null,null,"","",""]
[null,null,null,null,"","",""]
[null,null,null,null,"","",""]
[null,null,null,null,"","",""]
[null,null,null,null,"","",""]
[null,null,null,null,"","",""]
[null,null,null,null,"","",""]
[null,null,null,null,"","",""]
[null,null,null,null,"","",""]
[null,null,null,null,"","",""]
[null,null,null,null,"","",""]
[null,null,null,null,"","",""]
[null,null,null,null,"","",""]
[null,null,null,null,"","",""]
[null,null,null,null,"","",""]
[null,null,null,null,"","",""]
[null,null,null,null,"","",""]
[null,null,null,null,"","",""]
[null,null,null,null,"","",""]
[null,null,null,null,"","",""]
[null,null,null,null,"","",""]
[null,null,null,null,"","",""]
[null,null,null,null,"","",""]
[null,null,null,null,"","",""]
[null,null,null,null,"","",""]
[null,null,null,null,"","",""]
[null,null,null,null,"","",""]
[null,null,null,null,"","",""]
[null,null,null,null,"","",""]
[null,null,null,null,"","",""]
[null,null,null,null,"","",""]
[null,null,null,null,"","",""]
[null,null,null,null,"","",""]
[null,null,null,null,"","",""]
[null,null,null,null,"","",""]
[null,null,null,null,"","",""]
[null,null,null,null,"","",""]
[null,null,null,null,"","",""]
[null,null,null,null,"","",""]
[null,null,null,null,"","",""]
[null,null,null,null,"","",""]
[null,null,null,null,"","",""]
[null,null,null,null,"","",""]
[null,null,null,null,"","",""]
[null,null,null,null,"","",""]
[null,null,null,null,"","",""]
[null,null,null,null,"","",""]
[null,null,null,null,"","",""]
[null,null,null,null,"","",""]
[null,null,null,null,"","",""]
[null,null,null,null,"","",""]
[null,null,null,null,"","",""]
[null,null,null,null,"","",""]
[null,null,null,null,"","",""]
[null,null,null,null,"","",""]
[null,null,null,null,"","",""]
[null,null,null,null,"","",""]
[null,null,null,null,"","",""]
[null,null,null,null,"","",""]
[null,null,null,null,"","",""]
[null,null,null,null,"","",""]
[null,null,null,null,"","",""]
[null,null,null,null,"","",""]
[null,null,null,null,"","",""]
[null,null,null,null,"","",""]
[null,null,null,null,"","",""]
[null,null,null,null,{"$f":"IF(A2397=\"\",\"\",C2397/B2397*100)","v":""},{"$f":"IF(A2397=\"\",\"\",B2397/D2397)","v":""},{"$f":"IF(A2397=\"\",\"\",C2397/D2397)","v":""}]
[null,null,null,null,"","",""]
[null,null,null,null,"","",""]
[null,null,null,null,"","",""]
[null,null,null,null,"","",""]
[null,null,null,null,"","",""]
[null,null,null,null,"","",""]
[null,null,null,null,"","",""]
[null,null,null,null,"","",""]
[null,null,null,null,"","",""]
[null,null,null,null,"","",""]
[null,null,null,null,"","",""]
[null,null,null,null,"","",""]
[null,null,null,null,"","",""]
[null,null,null,null,"","",""]
[null,null,null,null,"","",""]
[null,null,null,null,"","",""]
[null,null,null,null,"","",""]
[null,null,null,null,"","",""]
[null,null,null,null,"","",""]
[null,null,null,null,"","",""]
[null,null,null,null,"","",""]
[null,null,null,null,"","",""]
[null,null,null,null,"","",""]
[null,null,null,null,"","",""]
[null,null,null,null,"","",""]
[null,null,null,null,"","",""]
[null,null,null,null,"","",""]
[null,null,null,null,"","",""]
[null,null,null,null,"","",""]
[null,null,null,null,"","",""]
[null,null,null,null,"","",""]
[null,null,null,null,"","",""]
[null,null,null,null,"","",""]
[null,null,null,null,"","",""]
[null,null,null,null,"","",""]
[null,null,null,null,"","",""]
[null,null,null,null,"","",""]
[null,null,null,null,"","",""]
[null,null,null,null,"","",""]
[null,null,null,null,"","",""]
[null,null,null,null,"","",""]
[null,null,null,null,"","",""]
[null,null,null,null,"","",""]
[null,null,null,null,"","",""]
[null,null,null,null,"","",""]
[null,null,null,null,"","",""]
[null,null,null,null,"","",""]
[null,null,null,null,"","",""]
[null,null,null,null,"","",""]
[null,null,null,null,"","",""]
[null,null,null,null,"","",""]
[null,null,null,null,"","",""]
[null,null,null,null,"","",""]
[null,null,null,null,"","",""]
[null,null,null,null,"","",""]
[null,null,null,null,"","",""]
[null,null,null,null,"","",""]
[null,null,null,null,"","",""]
[null,null,null,null,"","",""]
[null,null,null,null,"","",""]
[null,null,null,null,"","",""]
[null,null,null,null,"","",""]
[null,null,null,null,"","",""]
[null,null,null,null,"","",""]
[null,null,null,null,"","",""]
[null,null,null,null,"","",""]
[null,null,null,null,"","",""]
[null,null,null,null,"","",""]
[null,null,null,null,"","",""]
[null,null,null,null,"","",""]
[null,null,null,null,"","",""]
[null,null,null,null,"","",""]
[null,null,null,null,"","",""]
[null,null,null,null,"","",""]
[null,null,null,null,"","",""]
[null,null,null,null,"","",""]
[null,null,null,null,"","",""]
[null,null,null,null,"","",""]
[null,null,null,null,"","",""]
[null,null,null,null,"","",""]
[null,null,null,null,"","",""]
[null,null,null,null,"","",""]
[null,null,null,null,"","",""]
[null,null,null,null,"","",""]
[null,null,null,null,"","",""]
[null,null,null,null,"","",""]
[null,null,null,null,"","",""]
[null,null,null,null,"","",""]
[null,null,null,null,"","",""]
[null,null,null,null,"","",""]
[null,null,null,null,"","",""]
[null,null,null,null,"","",""]
[null,null,null,null,"","",""]
[null,null,null,null,"","",""]
[null,null,null,null,"","",""]
[null,null,null,null,"","",""]
[null,null,null,null,"","",""]
[null,null,null,null,"","",""]
[null,null,null,null,"","",""]
[null,null,null,null,"","",""]
[null,null,null,null,"","",""]
[null,null,null,null,"","",""]
[null,null,null,null,"","",""]
[null,null,null,null,"","",""]
[null,null,null,null,"","",""]
[null,null,null,null,"","",""]
[null,null,null,null,"","",""]
[null,null,null,null,"","",""]
[null,null,null,null,"","",""]
[null,null,null,null,"","",""]
[null,null,null,null,"","",""]
[null,null,null,null,"","",""]
[null,null,null,null,"","",""]
[null,null,null,null,"","",""]
[null,null,null,null,"","",""]
[null,null,null,null,"","",""]
[null,null,null,null,"","",""]
[null,null,null,null,"","",""]
[null,null,null,null,"","",""]
[null,null,null,null,"","",""]
[null,null,null,null,"","",""]
[null,null,null,null,"","",""]
[null,null,null,null,"","",""]
[null,null,null,null,"","",""]
[null,null,null,null,"","",""]
[null,null,null,null,"","",""]
[null,null,null,null,"","",""]
[null,null,null,null,"","",""]
[null,null,null,null,"","",""]
[null,null,null,null,"","",""]
[null,null,null,null,"","",""]
[null,null,null,null,"","",""]
[null,null,null,null,"","",""]
[null,null,null,null,"","",""]
[null,null,null,null,"","",""]
[null,null,null,null,"","",""]
[null,null,null,null,"","",""]
[null,null,null,null,"","",""]
[null,null,null,null,"","",""]
[null,null,null,null,"","",""]
[null,null,null,null,"","",""]
[null,null,null,null,"","",""]
[null,null,null,null,"","",""]
[null,null,null,null,"","",""]
[null,null,null,null,"","",""]
[null,null,null,null,"","",""]
[null,null,null,null,"","",""]
[null,null,null,null,"","",""]
[null,null,null,null,"","",""]
[null,null,null,null,"","",""]
[null,null,null,null,"","",""]
[null,null,null,null,"","",""]
[null,null,null,null,"","",""]
[null,null,null,null,"","",""]
[null,null,null,null,"","",""]
[null,null,null,null,"","",""]
[null,null,null,null,"","",""]
[null,null,null,null,"","",""]
[null,null,null,null,{"$f":"IF(A6173=\"\",\"\",C6173/B6173*100)","v":""},{"$f":"IF(A6173=\"\",\"\",B6173/D6173)","v":""},{"$f":"IF(A6173=\"\",\"\",C6173/D6173)","v":""}]
[null,null,null,null,"","",""]
[null,null,null,null,"","",""]
[null,null,null,null,"","",""]
[null,null,null,null,"","",""]
[null,null,null,null,"","",""]
[null,null,null,null,"","",""]
[null,null,null,null,"","",""]
[null,null,null,null,"","",""]
[null,null,null,null,"","",""]
[null,null,null,null,"","",""]
[null,null,null,null,"","",""]
[null,null,null,null,"","",""]
[null,null,null,null,"","",""]
[null,null,null,null,"","",""]
[null,null,null,null,"","",""]
[null,null,null,null,"","",""]
[null,null,null,null,"","",""]
[null,null,null,null,"","",""]
[null,null,null,null,"","",""]
[null,null,null,null,"","",""]
[null,null,null,null,"","",""]
[null,null,null,null,"","",""]
[null,null,null,null,"","",""]
[null,null,null,null,"","",""]
[null,null,null,null,"","",""]
[null,null,null,null,"","",""]
[null,null,null,null,"","",""]
[null,null,null,null,"","",""]
[null,null,null,null,"","",""]
[null,null,null,null,"","",""]
[null,null,null,null,"","",""]
[null,null,null,null,"","",""]
[null,null,null,null,"","",""]
[null,null,null,null,"","",""]
[null,null,null,null,"","",""]
[null,null,null,null,"","",""]
[null,null,null,null,"","",""]
[null,null,null,null,"","",""]
[null,null,null,null,"","",""]
[null,null,null,null,"","",""]
[null,null,null,null,"","",""]
[null,null,null,null,"","",""]
[null,null,null,null,"","",""]
[null,null,null,null,"","",""]
[null,null,null,null,"","",""]
[null,null,null,null,"","",""]
[null,null,null,null,"","",""]
[null,null,null,null,"","",""]
[null,null,null,null,"","",""]
[null,null,null,null,"","",""]
[null,null,null,null,"","",""]
[null,null,null,null,"","",""]
[null,null,null,null,"","",""]
[null,null,null,null,"","",""]
[null,null,null,null,"","",""]
[null,null,null,null,"","",""]
[null,null,null,null,"","",""]
[null,null,null,null,"","",""]
[null,null,null,null,"","",""]
[null,null,null,null,"","",""]
[null,null,null,null,"","",""]
[null,null,null,null,"","",""]
[null,null,null,null,"","",""]
[null,null,null,null,"","",""]
[null,null,null,null,"","",""]
[null,null,null,null,"","",""]
[null,null,null,null,"","",""]
[null,null,null,null,"","",""]
[null,null,null,null,"","",""]
[null,null,null,null,"","",""]
[null,null,null,null,"","",""]
[null,null,null,null,"","",""]
[null,null,null,null,"","",""]
[null,null,null,null,"","",""]
[null,null,null,null,"","",""]
[null,null,null,null,"","",""]
[null,null,null,null,"","",""]
[null,null,null,null,"","",""]
[null,null,null,null,"","",""]
[null,null,null,null,"","",""]
[null,null,null,null,"","",""]
[null,null,null,null,"","",""]
[null,null,null,null,"","",""]
[null,null,null,null,"","",""]
[null,null,null,null,"","",""]
[null,null,null,null,{"$f":"IF(A8221=\"\",\"\",C8221/B8221*100)","v":""},{"$f":"IF(A8221=\"\",\"\",B8221/D8221)","v":""},{"$f":"IF(A8221=\"\",\"\",C8221/D8221)","v":""}]
[null,null,null,null,"","",""]
[null,null,null,null,"","",""]
[null,null,null,null,"","",""]
[null,null,null,null,"","",""]
[null,null,null,null,"","",""]
[null,null,null,null,"","",""]
[null,null,null,null,"","",""]
[null,null,null,null,"","",""]
[null,null,null,null,"","",""]
[null,null,null,null,"","",""]
[null,null,null,null,"","",""]
[null,null,null,null,"","",""]
[null,null,null,null,"","",""]
[null,null,null,null,"","",""]
[null,null,null,null,"","",""]
[null,null,null,null,"","",""]
[null,null,null,null,"","",""]
[null,null,null,null,"","",""]
[null,null,null,null,"","",""]
[null,null,null,null,"","",""]
[null,null,null,null,"","",""]
[null,null,null,null,"","",""]
[null,null,null,null,"","",""]
[null,null,null,null,"","",""]
[null,null,null,null,"","",""]
[null,null,null,null,"","",""]
[null,null,null,null,"","",""]
[null,null,null,null,"","",""]
[null,null,null,null,"","",""]
[null,null,null,null,"","",""]
[null,null,null,null,"","",""]
[null,null,null,null,"","",""]
[null,null,null,null,"","",""]
[null,null,null,null,"","",""]
[null,null,null,null,"","",""]
[null,null,null,null,"","",""]
[null,null,null,null,"","",""]
[null,null,null,null,"","",""]
[null,null,null,null,"","",""]
[null,null,null,null,"","",""]
[null,null,null,null,"","",""]
[null,null,null,null,"","",""]
[null,null,null,null,"","",""]
[null,null,null,null,"","",""]
[null,null,null,null,"","",""]
[null,null,null,null,"","",""]
[null,null,null,null,"","",""]
[null,null,null,null,"","",""]
[null,null,null,null,"","",""]
[null,null,null,null,"","",""]
[null,null,null,null,"","",""]
[null,null,null,null,"","",""]
[null,null,null,null,"","",""]
[null,null,null,null,"","",""]
[null,null,null,null,"","",""]
[null,null,null,null,"","",""]
[null,null,null,null,"","",""]
[null,null,null,null,"","",""]
[null,null,null,null,"","",""]
[null,null,null,null,"","",""]
[null,null,null,null,"","",""]
[null,null,null,null,"","",""]
[null,null,null,null,"","",""]
[null,null,null,null,"","",""]
[null,null,null,null,"","",""]
[null,null,null,null,"","",""]
[null,null,null,null,"","",""]
[null,null,null,null,"","",""]
[null,null,null,null,"","",""]
[null,null,null,null,"","",""]
[null,null,null,null,"","",""]
[null,null,null,null,"","",""]
[null,null,null,null,"","",""]
[null,null,null,null,"","",""]
[null,null,null,null,"","",""]
[null,null,null,null,"","",""]
[null,null,null,null,"","",""]
[null,null,null,null,"","",""]
[null,null,null,null,"","",""]
[null,null,null,null,"","",""]
[null,null,null,null,"","",""]
[null,null,null,null,"","",""]
[null,null,null,null,"","",""]
[null,null,null,null,"","",""]
[null,null,null,null,"","",""]
[null,null,null,null,"","",""]
[null,null,null,null,"","",""]
[null,null,null,null,"","",""]
[null,null,null,null,"","",""]
[null,null,null,null,"","",""]
[null,null,null,null,"","",""]
[null,null,null,null,"","",""]
[null,null,null,null,"","",""]
[null,null,null,null,"","",""]
[null,null,null,null,{"$f":"IF(A10461=\"\",\"\",C10461/B10461*100)","v":""},{"$f":"IF(A10461=\"\",\"\",B10461/D10461)","v":""},{"$f":"IF(A10461=\"\",\"\",C10461/D10461)","v":""}]
[null,null,null,null,"","",""]
[null,null,null,null,"","",""]
[null,null,null,null,"","",""]
[null,null,null,null,"","",""]
[null,null,null,null,"","",""]
[null,null,null,null,"","",""]
[null,null,null,null,"","",""]
[null,null,null,null,"","",""]
[null,null,null,null,"","",""]
[null,null,null,null,"","",""]
[null,null,null,null,{"$f":"IF(A10717=\"\",\"\",C10717/B10717*100)","v":""},{"$f":"IF(A10717=\"\",\"\",B10717/D10717)","v":""},{"$f":"IF(A10717=\"\",\"\",C10717/D10717)","v":""}]
[null,null,null,null,"","",""]
[null,null,null,null,"","",""]
[null,null,null,null,"","",""]
[null,null,null,null,"","",""]
[null,null,null,null,"","",""]
[null,null,null,null,"","",""]
[null,null,null,null,"","",""]
[null,null,null,null,"","",""]
[null,null,null,null,"","",""]
[null,null,null,null,"","",""]
[null,null,null,null,"","",""]
[null,null,null,null,"","",""]
[null,null,null,null,"","",""]
[null,null,null,null,"","",""]
[null,null,null,null,"","",""]
[null,null,null,null,"","",""]
[null,null,null,null,"","",""]
[null,null,null,null,"","",""]
[null,null,null,null,"","",""]
[null,null,null,null,"","",""]
[null,null,null,null,"","",""]
[null,null,null,null,"","",""]
[null,null,null,null,"","",""]
[null,null,null,null,"","",""]
[null,null,null,null,"","",""]
[null,null,null,null,"","",""]
[null,null,null,null,"","",""]
[null,null,null,null,"","",""]
[null,null,null,null,"","",""]
[null,null,null,null,"","",""]
[null,null,null,null,"","",""]
[null,null,null,null,"","",""]
[null,null,null,null,"","",""]
[null,null,null,null,"","",""]
[null,null,null,null,"","",""]
[null,null,null,null,"","",""]
[null,null,null,null,"","",""]
[null,null,null,null,"","",""]
[null,null,null,null,"","",""]
[null,null,null,null,"","",""]
[null,null,null,null,"","",""]
[null,null,null,null,"","",""]
[null,null,null,null,"","",""]
[null,null,null,null,"","",""]
[null,null,null,null,"","",""]
[null,null,null,null,"","",""]
[null,null,null,null,"","",""]
[null,null,null,null,"","",""]
[null,null,null,null,"","",""]
[null,null,null,null,"","",""]
[null,null,null,null,"","",""]
[null,null,null,null,"","",""]
[null,null,null,null,"","",""]
[null,null,null,null,"","",""]
[null,null,null,null,"","",""]
[null,null,null,null,"","",""]
[null,null,null,null,"","",""]
[null,null,null,null,"","",""]
[null,null,null,null,"","",""]
[null,null,null,null,"","",""]
[null,null,null,null,"","",""]
[null,null,null,null,"","",""]
[null,null,null,null,"","",""]
[null,null,null,null,"","",""]
[null,null,null,null,"","",""]
[null,null,null,null,"","",""]
[null,null,null,null,"","",""]
[null,null,null,null,"","",""]
[null,null,null,null,"","",""]
[null,null,null,null,"","",""]
[null,null,null,null,"","",""]
[null,null,null,null,"","",""]
[null,null,null,null,"","",""]
[null,null,null,null,"","",""]
[null,null,null,null,"","",""]
[null,null,null,null,"","",""]
[null,null,null,null,"","",""]
[null,null,null,null,"","",""]
[null,null,null,null,"","",""]
[null,null,null,null,"","",""]
[null,null,null,null,"","",""]
[null,null,null,null,"","",""]
[null,null,null,null,"","",""]
[null,null,null,null,"","",""]
[null,null,null,null,"","",""]
[null,null,null,null,{"$f":"IF(A12765=\"\",\"\",C12765/B12765*100)","v":""},{"$f":"IF(A12765=\"\",\"\",B12765/D12765)","v":""},{"$f":"IF(A12765=\"\",\"\",C12765/D12765)","v":""}]
[null,null,null,null,"","",""]
[null,null,null,null,"","",""]
[null,null,null,null,"","",""]
[null,null,null,null,"","",""]
[null,null,null,null,"","",""]
[null,null,null,null,"","",""]
[null,null,null,null,"","",""]
[null,null,null,null,"","",""]
[null,null,null,null,"","",""]
[null,null,null,null,"","",""]
[null,null,null,null,"","",""]
[null,null,null,null,"","",""]
[null,null,null,null,"","",""]
[null,null,null,null,"","",""]
[null,null,null,null,"","",""]
[null,null,null,null,"","",""]
[null,null,null,null,"","",""]
[null,null,null,null,"","",""]
[null,null,null,null,"","",""]
[null,null,null,null,"","",""]
[null,null,null,null,"","",""]
[null,null,null,null,"","",""]
[null,null,null,null,"","",""]
[null,null,null,null,"","",""]
[null,null,null,null,"","",""]
[null,null,null,null,"","",""]
[null,null,null,null,"","",""]
[null,null,null,null,"","",""]
[null,null,null,null,"","",""]
[null,null,null,null,"","",""]
[null,null,null,null,"","",""]
[null,null,null,null,"","",""]
[null,null,null,null,"","",""]
[null,null,null,null,"","",""]
[null,null,null,null,"","",""]
[null,null,null,null,"","",""]
[null,null,null,null,"","",""]
[null,null,null,null,"","",""]
[null,null,null,null,"","",""]
[null,null,null,null,"","",""]
[null,null,null,null,"","",""]
[null,null,null,null,"","",""]
[null,null,null,null,"","",""]
[null,null,null,null,"","",""]
[null,null,null,null,"","",""]
[null,null,null,null,"","",""]
[null,null,null,null,"","",""]
[null,null,null,null,"","",""]
[null,null,null,null,"","",""]
[null,null,null,null,"","",""]
[null,null,null,null,"","",""]
[null,null,null,null,"","",""]
[null,null,null,null,"","",""]
[null,null,null,null,"","",""]
[null,null,null,null,"","",""]
[null,null,null,null,"","",""]
[null,null,null,null,"","",""]
[null,null,null,null,"","",""]
[null,null,null,null,"","",""]
[null,null,null,null,"","",""]
[null,null,null,null,"","",""]
[null,null,null,null,"","",""]
[null,null,null,null,"","",""]
[null,null,null,null,"","",""]
[null,null,null,null,"","",""]
[null,null,null,null,"","",""]
[null,null,null,null,"","",""]
[null,null,null,null,"","",""]
[null,null,null,null,"","",""]
[null,null,null,null,"","",""]
[null,null,null,null,"","",""]
[null,null,null,null,"","",""]
[null,null,null,null,"","",""]
[null,null,null,null,"","",""]
[null,null,null,null,"","",""]
[null,null,null,null,"","",""]
[null,null,null,null,"","",""]
[null,null,null,null,"","",""]
[null,null,null,null,"","",""]
[null,null,null,null,"","",""]
[null,null,null,null,"","",""]
[null,null,null,null,"","",""]
[null,null,null,null,"","",""]
[null,null,null,null,"","",""]
[null,null,null,null,"","",""]
[null,null,null,null,"","",""]
[null,null,null,null,"","",""]
[null,null,null,null,"","",""]
[null,null,null,null,"","",""]
[null,null,null,null,"","",""]
[null,null,null,null,"","",""]
[null,null,null,null,"","",""]
[null,null,null,null,"","",""]
[null,null,null,null,"","",""]
[null,null,null,null,"","",""]
[null,null,null,null,"","",""]
[null,null,null,null,"","",""]
[null,null,null,null,"","",""]
[null,null,null,null,"","",""]
[null,null,null,null,"","",""]
[null,null,null,null,"","",""]
[null,null,null,null,"","",""]
[null,null,null,null,"","",""]
[null,null,null,null,"","",""]
[null,null,null,null,"","",""]
[null,null,null,null,"","",""]
[null,null,null,null,"","",""]
[null,null,null,null,"","",""]
[null,null,null,null,"","",""]
[null,null,null,null,"","",""]
[null,null,null,null,"","",""]
[null,null,null,null,"","",""]
[null,null,null,null,"","",""]
[null,null,null,null,"","",""]
[null,null,null,null,"","",""]
[null,null,null,null,"","",""]
[null,null,null,null,"","",""]
[null,null,null,null,"","",""]
[null,null,null,null,"","",""]
[null,null,null,null,"","",""]
[null,null,null,null,"","",""]
[null,null,null,null,"","",""]
[null,null,null,null,"","",""]
[null,null,null,null,"","",""]
[null,null,null,null,"","",""]
[null,null,null,null,"","",""]
[null,null,null,null,"","",""]
[null,null,null,null,"","",""]
[null,null,null,null,"","",""]
[null,null,null,null,"","",""]
[null,null,null,null,"","",""]
[null,null,null,null,"","",""]
[null,null,null,null,"","",""]
[null,null,null,null,"","",""]
[null,null,null,null,"","",""]
[null,null,null,null,"","",""]
[null,null,null,null,"","",""]
[null,null,null,null,"","",""]
[null,null,null,null,"","",""]
[null,null,null,null,"","",""]
[null,null,null,null,"","",""]
[null,null,null,null,"","",""]
[null,null,null,null,"","",""]
[null,null,null,null,"","",""]
[null,null,null,null,"","",""]
[null,null,null,null,"","",""]
[null,null,null,null,"","",""]
[null,null,null,null,"","",""]
[null,null,null,null,"","",""]
[null,null,null,null,"","",""]
[null,null,null,null,"","",""]
[null,null,null,null,"","",""]
[null,null,null,null,"","",""]
[null,null,null,null,"","",""]
[null,null,null,null,"","",""]
[null,null,null,null,"","",""]
[null,null,null,null,"","",""]
[null,null,null,null,"","",""]
[null,null,null,null,"","",""]
[null,null,null,null,"","",""]
[null,null,null,null,"","",""]
[null,null,null,null,"","",""]
[null,null,null,null,"","",""]
[null,null,null,null,"","",""]
[null,null,null,null,"","",""]
[null,null,null,null,"","",""]
[null,null,null,null,"","",""]
[null,null,null,null,"","",""]
[null,null,null,null,"","",""]
[null,null,null,null,"","",""]
[null,null,null,null,"","",""]
[null,null,null,null,"","",""]
[null,null,null,null,"","",""]
[null,null,null,null,"","",""]
[null,null,null,null,"","",""]
[null,null,null,null,"","",""]
[null,null,null,null,"","",""]
[null,null,null,null,"","",""]
[null,null,null,null,"","",""]
[null,null,null,null,"","",""]
[null,null,null,null,"","",""]
[null,null,null,null,"","",""]
[null,null,null,null,"","",""]
[null,null,null,null,"","",""]
[null,null,null,null,"","",""]
[null,null,null,null,"","",""]
[null,null,null,null,"","",""]
[null,null,null,null,"","",""]
[null,null,null,null,"","",""]
[null,null,null,null,"","",""]
[null,null,null,null,"","",""]
[null,null,null,null,"","",""]
[null,null,null,null,"","",""]
[null,null,null,null,"","",""]
[null,null,null,null,"","",""]
[null,null,null,null,"","",""]
[null,null,null,null,"","",""]
[null,null,null,null,"","",""]
[null,null,null,null,"","",""]
[null,null,null,null,"","",""]
[null,null,null,null,"","",""]
[null,null,null,null,{"$f":"IF(A17565=\"\",\"\",C17565/B17565*100)","v":""},{"$f":"IF(A17565=\"\",\"\",B17565/D17565)","v":""},{"$f":"IF(A17565=\"\",\"\",C17565/D17565)","v":""}]
[null,null,null,null,"","",""]
[null,null,null,null,"","",""]
[null,null,null,null,"","",""]
[null,null,null,null,"","",""]
[null,null,null,null,"","",""]
[null,null,null,null,"","",""]
[null,null,null,null,"","",""]
[null,null,null,null,"","",""]
[null,null,null,null,"","",""]
[null,null,null,null,"","",""]
[null,null,null,null,{"$f":"IF(A17821=\"\",\"\",C17821/B17821*100)","v":""},{"$f":"IF(A17821=\"\",\"\",B17821/D17821)","v":""},{"$f":"IF(A17821=\"\",\"\",C17821/D17821)","v":""}]
[null,null,null,null,"","",""]
[null,null,null,null,"","",""]
[null,null,null,null,"","",""]
[null,null,null,null,"","",""]
[null,null,null,null,"","",""]
[null,null,null,null,"","",""]
[null,null,null,null,"","",""]
[null,null,null,null,"","",""]
[null,null,null,null,"","",""]
[null,null,null,null,"","",""]
[null,null,null,null,"","",""]
[null,null,null,null,"","",""]
[null,null,null,null,"","",""]
[null,null,null,null,"","",""]
[null,null,null,null,"","",""]
[null,null,null,null,"","",""]
[null,null,null,null,"","",""]
[null,null,null,null,"","",""]
[null,null,null,null,"","",""]
[null,null,null,null,"","",""]
[null,null,null,null,"","",""]
[null,null,null,null,"","",""]
[null,null,null,null,"","",""]
[null,null,null,null,"","",""]
[null,null,null,null,"","",""]
[null,null,null,null,"","",""]
[null,null,null,null,"","",""]
[null,null,null,null,"","",""]
[null,null,null,null,"","",""]
[null,null,null,null,"","",""]
[null,null,null,null,"","",""]
[null,null,null,null,"","",""]
[null,null,null,null,"","",""]
[null,null,null,null,"","",""]
[null,null,null,null,"","",""]
[null,null,null,null,"","",""]
[null,null,null,null,"","",""]
[null,null,null,null,"","",""]
[null,null,null,null,"","",""]
[null,null,null,null,"","",""]
[null,null,null,null,"","",""]
[null,null,null,null,"","",""]
[null,null,null,null,"","",""]
[null,null,null,null,"","",""]
[null,null,null,null,"","",""]
[null,null,null,null,"","",""]
[null,null,null,null,"","",""]
[null,null,null,null,"","",""]
[null,null,null,null,"","",""]
[null,null,null,null,"","",""]
[null,null,null,null,"","",""]
[null,null,null,null,"","",""]
[null,null,null,null,"","",""]
[null,null,null,null,"","",""]
[null,null,null,null,"","",""]
[null,null,null,null,"","",""]
[null,null,null,null,"","",""]
[null,null,null,null,"","",""]
[null,null,null,null,"","",""]
[null,null,null,null,"","",""]
[null,null,null,null,"","",""]
[null,null,null,null,"","",""]
[null,null,null,null,"","",""]
[null,null,null,null,"","",""]
[null,null,null,null,"","",""]
[null,null,null,null,"","",""]
[null,null,null,null,"","",""]
[null,null,null,null,"","",""]
[null,null,null,null,"","",""]
[null,null,null,null,"","",""]
[null,null,null,null,"","",""]
[null,null,null,null,"","",""]
[null,null,null,null,"","",""]
[null,null,null,null,"","",""]
[null,null,null,null,"","",""]
[null,null,null,null,"","",""]
[null,null,null,null,"","",""]
[null,null,null,null,"","",""]
[null,null,null,null,"","",""]
[null,null,null,null,"","",""]
[null,null,null,null,"","",""]
[null,null,null,null,"","",""]
[null,null,null,null,"","",""]
[null,null,null,null,"","",""]
[null,null,null,null,"","",""]
[null,null,null,null,"","",""]
[null,null,null,null,"","",""]
[null,null,null,null,"","",""]
[null,null,null,null,"","",""]
[null,null,null,null,"","",""]
[null,null,null,null,"","",""]
[null,null,null,null,"","",""]
[null,null,null,null,"","",""]
[null,null,null,null,"","",""]
[null,null,null,null,"","",""]
[null,null,null,null,"","",""]
[null,null,null,null,"","",""]
[null,null,null,null,"","",""]
[null,null,null,null,"","",""]
[null,null,null,null,"","",""]
[null,null,null,null,"","",""]
[null,null,null,null,"","",""]
[null,null,null,null,"","",""]
[null,null,null,null,"","",""]
[null,null,null,null,"","",""]
[null,null,null,null,"","",""]
[null,null,null,null,"","",""]
[null,null,null,null,"","",""]
[null,null,null,null,"","",""]
[null,null,null,null,"","",""]
[null,null,null,null,"","",""]
[null,null,null,null,"","",""]
[null,null,null,null,"","",""]
[null,null,null,null,"","",""]
[null,null,null,null,"","",""]
[null,null,null,null,"","",""]
[null,null,null,null,"","",""]
[null,null,null,null,"","",""]
[null,null,null,null,"","",""]
[null,null,null,null,"","",""]
[null,null,null,null,"","",""]
[null,null,null,null,"","",""]
[null,null,null,null,"","",""]
[null,null,null,null,"","",""]
[null,null,null,null,"","",""]
[null,null,null,null,"","",""]
[null,null,null,null,"","",""]
[null,null,null,null,"","",""]
[null,null,null,null,"","",""]
[null,null,null,null,"","",""]
[null,null,null,null,"","",""]
[null,null,null,null,"","",""]
[null,null,null,null,"","",""]
[null,null,null,null,"","",""]
[null,null,null,null,"","",""]
[null,null,null,null,"","",""]
[null,null,null,null,"","",""]
[null,null,null,null,"","",""]
[null,null,null,null,"","",""]
[null,null,null,null,"","",""]
[null,null,null,null,"","",""]
[null,null,null,null,"","",""]
[null,null,null,null,"","",""]
[null,null,null,null,"","",""]
[null,null,null,null,"","",""]
[null,null,null,null,"","",""]
[null,null,null,null,"","",""]
[null,null,null,null,"","",""]
[null,null,null,null,"","",""]
[null,null,null,null,"","",""]
[null,null,null,null,"","",""]
[null,null,null,null,"","",""]
[null,null,null,null,"","",""]
[null,null,null,null,"","",""]
[null,null,null,null,"","",""]
[null,null,null,null,"","",""]
[null,null,null,null,"","",""]
[null,null,null,null,"","",""]
[null,null,null,null,"","",""]
[null,null,null,null,"","",""]
[null,null,null,null,"","",""]
[null,null,null,null,"","",""]
[null,null,null,null,"","",""]
[null,null,null,null,"","",""]
[null,null,null,null,"","",""]
[null,null,null,null,"","",""]
[null,null,null,null,"","",""]
[null,null,null,null,"","",""]
[null,null,null,null,"","",""]
[null,null,null,null,"","",""]
[null,null,null,null,"","",""]
[null,null,null,null,"","",""]
[null,null,null,null,"","",""]
[null,null,null,null,"","",""]
[null,null,null,null,"","",""]
[null,null,null,null,"","",""]
[null,null,null,null,"","",""]
[null,null,null,null,"","",""]
[null,null,null,null,"","",""]
[null,null,null,null,"","",""]
[null,null,null,null,"","",""]
[null,null,null,null,"","",""]
[null,null,null,null,"","",""]
[null,null,null,null,"","",""]
[null,null,null,null,"","",""]
[null,null,null,null,"","",""]
[null,null,null,null,"","",""]
[null,null,null,null,"","",""]
[null,null,null,null,"","",""]
[null,null,null,null,"","",""]
[null,null,null,null,"","",""]
[null,null,null,null,"","",""]
[null,null,null,null,"","",""]
[null,null,null,null,"","",""]
[null,null,null,null,"","",""]
[null,null,null,null,"","",""]
[null,null,null,null,"","",""]
[null,null,null,null,"","",""]
[null,null,null,null,"","",""]
[null,null,null,null,"","",""]
[null,null,null,null,"","",""]
[null,null,null,null,{"$f":"IF(A22621=\"\",\"\",C22621/B22621*100)","v":""},{"$f":"IF(A22621=\"\",\"\",B22621/D22621)","v":""},{"$f":"IF(A22621=\"\",\"\",C22621/D22621)","v":""}]
[null,null,null,null,"","",""]
[null,null,null,null,"","",""]
[null,null,null,null,"","",""]
[null,null,null,null,"","",""]
[null,null,null,null,"","",""]
[null,null,null,null,"","",""]
[null,null,null,null,"","",""]
[null,null,null,null,"","",""]
[null,null,null,null,"","",""]
[null,null,null,null,"","",""]
[null,null,null,null,{"$f":"IF(A22877=\"\",\"\",C22877/B22877*100)","v":""},{"$f":"IF(A22877=\"\",\"\",B22877/D22877)","v":""},{"$f":"IF(A22877=\"\",\"\",C22877/D22877)","v":""}]
[null,null,null,null,"","",""]
[null,null,null,null,"","",""]
[null,null,null,null,"","",""]
[null,null,null,null,"","",""]
[null,null,null,null,"","",""]
[null,null,null,null,"","",""]
[null,null,null,null,"","",""]
[null,null,null,null,"","",""]
[null,null,null,null,"","",""]
[null,null,null,null,"","",""]
[null,null,null,null,"","",""]
[null,null,null,null,"","",""]
[null,null,null,null,"","",""]
[null,null,null,null,"","",""]
[null,null,null,null,"","",""]
[null,null,null,null,"","",""]
[null,null,null,null,"","",""]
[null,null,null,null,"","",""]
[null,null,null,null,"","",""]
[null,null,null,null,"","",""]
[null,null,null,null,"","",""]
[null,null,null,null,"","",""]
[null,null,null,null,"","",""]
[null,null,null,null,"","",""]
[null,null,null,null,"","",""]
[null,null,null,null,"","",""]
[null,null,null,null,"","",""]
[null,null,null,null,"","",""]
[null,null,null,null,"","",""]
[null,null,null,null,"","",""]
[null,null,null,null,"","",""]
[null,null,null,null,"","",""]
[null,null,null,null,"","",""]
[null,null,null,null,"","",""]
[null,null,null,null,"","",""]
[null,null,null,null,"","",""]
[null,null,null,null,"","",""]
[null,null,null,null,"","",""]
[null,null,null,null,"","",""]
[null,null,null,null,"","",""]
[null,null,null,null,"","",""]
[null,null,null,null,"","",""]
[null,null,null,null,"","",""]
[null,null,null,null,"","",""]
[null,null,null,null,"","",""]
[null,null,null,null,"","",""]
[null,null,null,null,"","",""]
[null,null,null,null,"","",""]
[null,null,null,null,"","",""]
[null,null,null,null,"","",""]
[null,null,null,null,"","",""]
[null,null,null,null,"","",""]
[null,null,null,null,"","",""]
[null,null,null,null,"","",""]
[null,null,null,null,"","",""]
[null,null,null,null,"","",""]
[null,null,null,null,"","",""]
[null,null,null,null,"","",""]
[null,null,null,null,"","",""]
[null,null,null,null,"","",""]
[null,null,null,null,"","",""]
[null,null,null,null,"","",""]
[null,null,null,null,"","",""]
[null,null,null,null,{"$f":"IF(A24413=\"\",\"\",C24413/B24413*100)","v":""},{"$f":"IF(A24413=\"\",\"\",B24413/D24413)","v":""},{"$f":"IF(A24413=\"\",\"\",C24413/D24413)","v":""}]
[null,null,null,null,"","",""]
[null,null,null,null,"","",""]
[null,null,null,null,"","",""]
[null,null,null,null,"","",""]
[null,null,null,null,"","",""]
[null,null,null,null,"","",""]
[null,null,null,null,"","",""]
[null,null,null,null,"","",""]
[null,null,null,null,"","",""]
[null,null,null,null,"","",""]
[null,null,null,null,{"$f":"IF(A24669=\"\",\"\",C24669/B24669*100)","v":""},{"$f":"IF(A24669=\"\",\"\",B24669/D24669)","v":""},{"$f":"IF(A24669=\"\",\"\",C24669/D24669)","v":""}]
[null,null,null,null,"","",""]
[null,null,null,null,"","",""]
[null,null,null,null,"","",""]
[null,null,null,null,"","",""]
[null,null,null,null,"","",""]
[null,null,null,null,"","",""]
[null,null,null,null,"","",""]
[null,null,null,null,"","",""]
[null,null,null,null,"","",""]
[null,null,null,null,"","",""]
[null,null,null,null,"","",""]
[null,null,null,null,"","",""]
[null,null,null,null,"","",""]
[null,null,null,null,"","",""]
[null,null,null,null,"","",""]
[null,null,null,null,"","",""]
[null,null,null,null,"","",""]
[null,null,null,null,"","",""]
[null,null,null,null,"","",""]
[null,null,null,null,"","",""]
[null,null,null,null,"","",""]
[null,null,null,null,"","",""]
[null,null,null,null,"","",""]
[null,null,null,null,"","",""]
[null,null,null,null,"","",""]
[null,null,null,null,"","",""]
[null,null,null,null,"","",""]
[null,null,null,null,"","",""]
[null,null,null,null,"","",""]
[null,null,null,null,"","",""]
[null,null,null,null,"","",""]
[null,null,null,null,"","",""]
[null,null,null,null,"","",""]
[null,null,null,null,"","",""]
[null,null,null,null,"","",""]
[null,null,null,null,"","",""]
[null,null,null,null,"","",""]
[null,null,null,null,"","",""]
[null,null,null,null,"","",""]
[null,null,null,null,"","",""]
[null,null,null,null,"","",""]
[null,null,null,null,"","",""]
[null,null,null,null,"","",""]
[null,null,null,null,"","",""]
[null,null,null,null,"","",""]
[null,null,null,null,"","",""]
[null,null,null,null,"","",""]
[null,null,null,null,"","",""]
[null,null,null,null,"","",""]
[null,null,null,null,"","",""]
[null,null,null,null,"","",""]
[null,null,null,null,"","",""]
[null,null,null,null,"","",""]
[null,null,null,null,"","",""]
[null,null,null,null,"","",""]
[null,null,null,null,"","",""]
[null,null,null,null,"","",""]
[null,null,null,null,"","",""]
[null,null,null,null,"","",""]
[null,null,null,null,"","",""]
[null,null,null,null,"","",""]
[null,null,null,null,"","",""]
[null,null,null,null,"","",""]
[null,null,null,null,"","",""]
[null,null,null,null,"","",""]
[null,null,null,null,"","",""]
[null,null,null,null,"","",""]
[null,null,null,null,"","",""]
[null,null,null,null,"","",""]
[null,null,null,null,"","",""]
[null,null,null,null,"","",""]
[null,null,null,null,"","",""]
[null,null,null,null,"","",""]
[null,null,null,null,"","",""]
[null,null,null,null,"","",""]
[null,null,null,null,"","",""]
[null,null,null,null,"","",""]
[null,null,null,null,"","",""]
[null,null,null,null,"","",""]
[null,null,null,null,"","",""]
[null,null,null,null,"","",""]
[null,null,null,null,"","",""]
[null,null,null,null,"","",""]
[null,null,null,null,"","",""]
[null,null,null,null,"","",""]
[null,null,null,null,"","",""]
[null,null,null,null,"","",""]
[null,null,null,null,"","",""]
[null,null,null,null,"","",""]
[null,null,null,null,"","",""]
[null,null,null,null,"","",""]
[null,null,null,null,"","",""]
[null,null,null,null,"","",""]
[null,null,null,null,"","",""]
[null,null,null,null,"","",""]
[null,null,null,null,"","",""]
[null,null,null,null,"","",""]
[null,null,null,null,"","",""]
[null,null,null,null,"","",""]
[null,null,null,null,"","",""]
[null,null,null,null,"","",""]
[null,null,null,null,"","",""]
[null,null,null,null,"","",""]
[null,null,null,null,"","",""]
[null,null,null,null,"","",""]
[null,null,null,null,"","",""]
[null,null,null,null,"","",""]
[null,null,null,null,"","",""]
[null,null,null,null,"","",""]
[null,null,null,null,"","",""]
[null,null,null,null,"","",""]
[null,null,null,null,"","",""]
[null,null,null,null,"","",""]
[null,null,null,null,"","",""]
[null,null,null,null,"","",""]
[null,null,null,null,"","",""]
[null,null,null,null,"","",""]
[null,null,null,null,"","",""]
[null,null,null,null,"","",""]
[null,null,null,null,"","",""]
[null,null,null,null,"","",""]
[null,null,null,null,"","",""]
[null,null,null,null,"","",""]
[null,null,null,null,"","",""]
[null,null,null,null,"","",""]
[null,null,null,null,"","",""]
[null,null,null,null,{"$f":"IF(A27677=\"\",\"\",C27677/B27677*100)","v":""},{"$f":"IF(A27677=\"\",\"\",B27677/D27677)","v":""},{"$f":"IF(A27677=\"\",\"\",C27677/D27677)","v":""}]
[null,null,null,null,"","",""]
[null,null,null,null,"","",""]
[null,null,null,null,"","",""]
[null,null,null,null,"","",""]
[null,null,null,null,"","",""]
[null,null,null,null,"","",""]
[null,null,null,null,"","",""]
[null,null,null,null,"","",""]
[null,null,null,null,"","",""]
[null,null,null,null,"","",""]
[null,null,null,null,"","",""]
[null,null,null,null,"","",""]
[null,null,null,null,"","",""]
[null,null,null,null,"","",""]
[null,null,null,null,"","",""]
[null,null,null,null,"","",""]
[null,null,null,null,"","",""]
[null,null,null,null,"","",""]
[null,null,null,null,"","",""]
[null,null,null,null,"","",""]
[null,null,null,null,"","",""]
[null,null,null,null,"","",""]
[null,null,null,null,"","",""]
[null,null,null,null,"","",""]
[null,null,null,null,"","",""]
[null,null,null,null,"","",""]
[null,null,null,null,"","",""]
[null,null,null,null,"","",""]
[null,null,null,null,"","",""]
[null,null,null,null,"","",""]
[null,null,null,null,"","",""]
[null,null,null,null,"","",""]
[null,null,null,null,"","",""]
[null,null,null,null,"","",""]
[null,null,null,null,"","",""]
[null,null,null,null,"","",""]
[null,null,null,null,"","",""]
[null,null,null,null,"","",""]
[null,null,null,null,"","",""]
[null,null,null,null,"","",""]
[null,null,null,null,"","",""]
[null,null,null,null,"","",""]
[null,null,null,null,"","",""]
[null,null,null,null,"","",""]
[null,null,null,null,"","",""]
[null,null,null,null,"","",""]
[null,null,null,null,"","",""]
[null,null,null,null,"","",""]
[null,null,null,null,"","",""]
[null,null,null,null,"","",""]
[null,null,null,null,"","",""]
[null,null,null,null,"","",""]
[null,null,null,null,"","",""]
[null,null,null,null,"","",""]
[null,null,null,null,"","",""]
[null,null,null,null,"","",""]
[null,null,null,null,"","",""]
[null,null,null,null,"","",""]
[null,null,null,null,"","",""]
[null,null,null,null,"","",""]
[null,null,null,null,"","",""]
[null,null,null,null,"","",""]
[null,null,null,null,"","",""]
[null,null,null,null,{"$f":"IF(A29213=\"\",\"\",C29213/B29213*100)","v":""},{"$f":"IF(A29213=\"\",\"\",B29213/D29213)","v":""},{"$f":"IF(A29213=\"\",\"\",C29213/D29213)","v":""}]
[null,null,null,null,"","",""]
[null,null,null,null,"","",""]
[null,null,null,null,"","",""]
[null,null,null,null,"","",""]
[null,null,null,null,"","",""]
[null,null,null,null,"","",""]
[null,null,null,null,"","",""]
[null,null,null,null,"","",""]
[null,null,null,null,"","",""]
[null,null,null,null,"","",""]
[null,null,null,null,{"$f":"IF(A29469=\"\",\"\",C29469/B29469*100)","v":""},{"$f":"IF(A29469=\"\",\"\",B29469/D29469)","v":""},{"$f":"IF(A29469=\"\",\"\",C29469/D29469)","v":""}]
[null,null,null,null,"","",""]
[null,null,null,null,"","",""]
[null,null,null,null,"","",""]
[null,null,null,null,"","",""]
[null,null,null,null,"","",""]
[null,null,null,null,"","",""]
[null,null,null,null,"","",""]
[null,null,null,null,"","",""]
[null,null,null,null,"","",""]
[null,null,null,null,"","",""]
[null,null,null,null,{"$f":"IF(A29725=\"\",\"\",C29725/B29725*100)","v":""},{"$f":"IF(A29725=\"\",\"\",B29725/D29725)","v":""},{"$f":"IF(A29725=\"\",\"\",C29725/D29725)","v":""}]
[null,null,null,null,"","",""]
[null,null,null,null,"","",""]
[null,null,null,null,"","",""]
[null,null,null,null,"","",""]
[null,null,null,null,"","",""]
[null,null,null,null,"","",""]
[null,null,null,null,"","",""]
[null,null,null,null,"","",""]
[null,null,null,null,"","",""]
[null,null,null,null,"","",""]
[null,null,null,null,"","",""]
[null,null,null,null,"","",""]
[null,null,null,null,"","",""]
[null,null,null,null,"","",""]
[null,null,null,null,"","",""]
[null,null,null,null,"","",""]
[null,null,null,null,"","",""]
[null,null,null,null,"","",""]
[null,null,null,null,"","",""]
[null,null,null,null,"","",""]
[null,null,null,null,"","",""]
[null,null,null,null,"","",""]
[null,null,null,null,"","",""]
[null,null,null,null,"","",""]
[null,null,null,null,"","",""]
[null,null,null,null,"","",""]
[null,null,null,null,{"$f":"IF(A30365=\"\",\"\",C30365/B30365*100)","v":""},{"$f":"IF(A30365=\"\",\"\",B30365/D30365)","v":""},{"$f":"IF(A30365=\"\",\"\",C30365/D30365)","v":""}]
[null,null,null,null,"","",""]
[null,null,null,null,"","",""]
[null,null,null,null,"","",""]
[null,null,null,null,"","",""]
[null,null,null,null,"","",""]
[null,null,null,null,"","",""]
[null,null,null,null,"","",""]
[null,null,null,null,"","",""]
[null,null,null,null,"","",""]
[null,null,null,null,"","",""]
[null,null,null,null,"","",""]
[null,null,null,null,"","",""]
[null,null,null,null,"","",""]
[null,null,null,null,"","",""]
[null,null,null,null,"","",""]
[null,null,null,null,"","",""]
[null,null,null,null,"","",""]
[null,null,null,null,"","",""]
[null,null,null,null,"","",""]
[null,null,null,null,"","",""]
[null,null,null,null,"","",""]
[null,null,null,null,"","",""]
[null,null,null,null,"","",""]
[null,null,null,null,"","",""]
[null,null,null,null,"","",""]
[null,null,null,null,"","",""]
[null,null,null,null,"","",""]
[null,null,null,null,"","",""]
[null,null,null,null,"","",""]
[null,null,null,null,"","",""]
[null,null,null,null,"","",""]
[null,null,null,null,"","",""]
[null,null,null,null,"","",""]
[null,null,null,null,"","",""]
[null,null,null,null,"","",""]
[null,null,null,null,"","",""]
[null,null,null,null,"","",""]
[null,null,null,null,"","",""]
[null,null,null,null,"","",""]
[null,null,null,null,"","",""]
[null,null,null,null,"","",""]
[null,null,null,null,"","",""]
[null,null,null,null,"","",""]
[null,null,null,null,"","",""]
[null,null,null,null,"","",""]
[null,null,null,null,"","",""]
[null,null,null,null,"","",""]
[null,null,null,null,"","",""]
[null,null,null,null,"","",""]
[null,null,null,null,"","",""]
[null,null,null,null,"","",""]
[null,null,null,null,"","",""]
[null,null,null,null,"","",""]
[null,null,null,null,"","",""]
[null,null,null,null,"","",""]
[null,null,null,null,"","",""]
[null,null,null,null,"","",""]
[null,null,null,null,"","",""]
[null,null,null,null,"","",""]
[null,null,null,null,"","",""]
[null,null,null,null,"","",""]
[null,null,null,null,"","",""]
[null,null,null,null,"","",""]
[null,null,null,null,"","",""]
[null,null,null,null,"","",""]
[null,null,null,null,"","",""]
[null,null,null,null,"","",""]
[null,null,null,null,"","",""]
[null,null,null,null,"","",""]
[null,null,null,null,"","",""]
[null,null,null,null,"","",""]
[null,null,null,null,"","",""]
[null,null,null,null,"","",""]
[null,null,null,null,"","",""]
[null,null,null,null,"","",""]
[null,null,null,null,"","",""]
[null,null,null,null,"","",""]
[null,null,null,null,"","",""]
[null,null,null,null,"","",""]
[null,null,null,null,"","",""]
[null,null,null,null,"","",""]
[null,null,null,null,"","",""]
[null,null,null,null,"","",""]
[null,null,null,null,"","",""]
[null,null,null,null,"","",""]
[null,null,null,null,"","",""]
[null,null,null,null,"","",""]
[null,null,null,null,"","",""]
[null,null,null,null,"","",""]
[null,null,null,null,"","",""]
[null,null,null,null,"","",""]
[null,null,null,null,"","",""]
[null,null,null,null,"","",""]
[null,null,null,null,"","",""]
[null,null,null,null,"","",""]
[null,null,null,null,"","",""]
[null,null,null,null,"","",""]
[null,null,null,null,"","",""]
[null,null,null,null,"","",""]
[null,null,null,null,"","",""]
[null,null,null,null,"","",""]
[null,null,null,null,"","",""]
[null,null,null,null,"","",""]
[null,null,null,null,"","",""]
[null,null,null,null,"","",""]
[null,null,null,null,"","",""]
[null,null,null,null,"","",""]
[null,null,null,null,"","",""]
[null,null,null,null,"","",""]
[null,null,null,null,"","",""]
[null,null,null,null,"","",""]
[null,null,null,null,"","",""]
[null,null,null,null,"","",""]
[null,null,null,null,"","",""]
[null,null,null,null,"","",""]
[null,null,null,null,"","",""]
[null,null,null,null,"","",""]
[null,null,null,null,"","",""]
[null,null,null,null,"","",""]
[null,null,null,null,"","",""]
[null,null,null,null,"","",""]
[null,null,null,null,"","",""]
[null,null,null,null,"","",""]
[null,null,null,null,"","",""]
[null,null,null,null,"","",""]
[null,null,null,null,"","",""]
[null,null,null,null,"","",""]
[null,null,null,null,"","",""]
[null,null,null,null,"","",""]
[null,null,null,null,"","",""]
[null,null,null,null,"","",""]
[null,null,null,null,"","",""]
[null,null,null,null,"","",""]
[null,null,null,null,"","",""]
[null,null,null,null,"","",""]
[null,null,null,null,"","",""]
[null,null,null,null,"","",""]
[null,null,null,null,"","",""]
[null,null,null,null,"","",""]
[null,null,null,null,"","",""]
[null,null,null,null,"","",""]
[null,null,null,null,"","",""]
[null,null,null,null,"","",""]
[null,null,null,null,"","",""]
[null,null,null,null,"","",""]
[null,null,null,null,"","",""]
[null,null,null,null,"","",""]
[null,null,null,null,"","",""]
[null,null,null,null,"","",""]
[null,null,null,null,"","",""]
[null,null,null,null,"","",""]
[null,null,null,null,"","",""]
[null,null,null,null,"","",""]
[null,null,null,null,"","",""]
[null,null,null,null,"","",""]
[null,null,null,null,"","",""]
[null,null,null,null,"","",""]
[null,null,null,null,"","",""]
[null,null,null,null,"","",""]
[null,null,null,null,"","",""]
[null,null,null,null,"","",""]
[null,null,null,null,"","",""]
[null,null,null,null,"","",""]
[null,null,null,null,"","",""]
[null,null,null,null,"","",""]
[null,null,null,null,"","",""]
[null,null,null,null,"","",""]
[null,null,null,null,"","",""]
[null,null,null,null,"","",""]
[null,null,null,null,"","",""]
[null,null,null,null,"","",""]
[null,null,null,null,"","",""]
[null,null,null,null,"","",""]
[null,null,null,null,"","",""]
[null,null,null,null,{"$f":"IF(A34525=\"\",\"\",C34525/B34525*100)","v":""},{"$f":"IF(A34525=\"\",\"\",B34525/D34525)","v":""},{"$f":"IF(A34525=\"\",\"\",C34525/D34525)","v":""}]
[null,null,null,null,"","",""]
[null,null,null,null,"","",""]
[null,null,null,null,"","",""]
[null,null,null,null,"","",""]
[null,null,null,null,"","",""]
[null,null,null,null,"","",""]
[null,null,null,null,"","",""]
[null,null,null,null,"","",""]
[null,null,null,null,"","",""]
[null,null,null,null,"","",""]
[null,null,null,null,"","",""]
[null,null,null,null,"","",""]
[null,null,null,null,"","",""]
[null,null,null,null,"","",""]
[null,null,null,null,"","",""]
[null,null,null,null,"","",""]
[null,null,null,null,"","",""]
[null,null,null,null,"","",""]
[null,null,null,null,"","",""]
[null,null,null,null,"","",""]
[null,null,null,null,"","",""]
[null,null,null,null,"","",""]
[null,null,null,null,"","",""]
[null,null,null,null,"","",""]
[null,null,null,null,"","",""]
[null,null,null,null,"","",""]
[null,null,null,null,"","",""]
[null,null,null,null,"","",""]
[null,null,null,null,"","",""]
[null,null,null,null,"","",""]
[null,null,null,null,"","",""]
[null,null,null,null,"","",""]
[null,null,null,null,"","",""]
[null,null,null,null,"","",""]
[null,null,null,null,"","",""]
[null,null,null,null,"","",""]
[null,null,null,null,"","",""]
[null,null,null,null,"","",""]
[null,null,null,null,"","",""]
[null,null,null,null,"","",""]
[null,null,null,null,"","",""]
[null,null,null,null,"","",""]
[null,null,null,null,"","",""]
[null,null,null,null,"","",""]
[null,null,null,null,"","",""]
[null,null,null,null,"","",""]
[null,null,null,null,"","",""]
[null,null,null,null,"","",""]
[null,null,null,null,"","",""]
[null,null,null,null,"","",""]
[null,null,null,null,"","",""]
[null,null,null,null,"","",""]
[null,null,null,null,"","",""]
[null,null,null,null,"","",""]
[null,null,null,null,"","",""]
[null,null,null,null,"","",""]
[null,null,null,null,"","",""]
[null,null,null,null,"","",""]
[null,null,null,null,"","",""]
[null,null,null,null,"","",""]
[null,null,null,null,"","",""]
[null,null,null,null,"","",""]
[null,null,null,null,"","",""]
[null,null,null,null,"","",""]
[null,null,null,null,"","",""]
[null,null,null,null,"","",""]
[null,null,null,null,"","",""]
[null,null,null,null,"","",""]
[null,null,null,null,"","",""]
[null,null,null,null,"","",""]
[null,null,null,null,"","",""]
[null,null,null,null,"","",""]
[null,null,null,null,"","",""]
[null,null,null,null,"","",""]
[null,null,null,null,{"$f":"IF(A36317=\"\",\"\",C36317/B36317*100)","v":""},{"$f":"IF(A36317=\"\",\"\",B36317/D36317)","v":""},{"$f":"IF(A36317=\"\",\"\",C36317/D36317)","v":""}]
[null,null,null,null,"","",""]
[null,null,null,null,"","",""]
[null,null,null,null,"","",""]
[null,null,null,null,"","",""]
[null,null,null,null,"","",""]
[null,null,null,null,"","",""]
[null,null,null,null,"","",""]
[null,null,null,null,"","",""]
[null,null,null,null,"","",""]
[null,null,null,null,"","",""]
[null,null,null,null,{"$f":"IF(A36573=\"\",\"\",C36573/B36573*100)","v":""},{"$f":"IF(A36573=\"\",\"\",B36573/D36573)","v":""},{"$f":"IF(A36573=\"\",\"\",C36573/D36573)","v":""}]
[null,null,null,null,"","",""]
[null,null,null,null,"","",""]
[null,null,null,null,"","",""]
[null,null,null,null,"","",""]
[null,null,null,null,"","",""]
[null,null,null,null,"","",""]
[null,null,null,null,"","",""]
[null,null,null,null,"","",""]
[null,null,null,null,"","",""]
[null,null,null,null,"","",""]
[null,null,null,null,"","",""]
[null,null,null,null,"","",""]
[null,null,null,null,"","",""]
[null,null,null,null,"","",""]
[null,null,null,null,"","",""]
[null,null,null,null,"","",""]
[null,null,null,null,"","",""]
[null,null,null,null,"","",""]
[null,null,null,null,"","",""]
[null,null,null,null,"","",""]
[null,null,null,null,"","",""]
[null,null,null,null,"","",""]
[null,null,null,null,"","",""]
[null,null,null,null,"","",""]
[null,null,null,null,"","",""]
[null,null,null,null,"","",""]
[null,null,null,null,"","",""]
[null,null,null,null,"","",""]
[null,null,null,null,"","",""]
[null,null,null,null,"","",""]
[null,null,null,null,"","",""]
[null,null,null,null,"","",""]
[null,null,null,null,"","",""]
[null,null,null,null,"","",""]
[null,null,null,null,"","",""]
[null,null,null,null,"","",""]
[null,null,null,null,"","",""]
[null,null,null,null,"","",""]
[null,null,null,null,"","",""]
[null,null,null,null,"","",""]
[null,null,null,null,"","",""]
[null,null,null,null,"","",""]
[null,null,null,null,"","",""]
[null,null,null,null,"","",""]
[null,null,null,null,"","",""]
[null,null,null,null,"","",""]
[null,null,null,null,"","",""]
[null,null,null,null,"","",""]
[null,null,null,null,"","",""]
[null,null,null,null,"","",""]
[null,null,null,null,"","",""]
[null,null,null,null,"","",""]
[null,null,null,null,"","",""]
[null,null,null,null,"","",""]
[null,null,null,null,"","",""]
[null,null,null,null,"","",""]
[null,null,null,null,"","",""]
[null,null,null,null,"","",""]
[null,null,null,null,"","",""]
[null,null,null,null,"","",""]
[null,null,null,null,"","",""]
[null,null,null,null,"","",""]
[null,null,null,null,"","",""]
[null,null,null,null,"","",""]
[null,null,null,null,"","",""]
[null,null,null,null,"","",""]
[null,null,null,null,"","",""]
[null,null,null,null,"","",""]
[null,null,null,null,"","",""]
[null,null,null,null,"","",""]
[null,null,null,null,"","",""]
[null,null,null,null,"","",""]
[null,null,null,null,"","",""]
[null,null,null,null,"","",""]
[null,null,null,null,"","",""]
[null,null,null,null,"","",""]
[null,null,null,null,"","",""]
[null,null,null,null,"","",""]
[null,null,null,null,"","",""]
[null,null,null,null,"","",""]
[null,null,null,null,"","",""]
[null,null,null,null,"","",""]
[null,null,null,null,"","",""]
[null,null,null,null,"","",""]
[null,null,null,null,"","",""]
[null,null,null,null,"","",""]
[null,null,null,null,"","",""]
[null,null,null,null,"","",""]
[null,null,null,null,"","",""]
[null,null,null,null,"","",""]
[null,null,null,null,"","",""]
[null,null,null,null,"","",""]
[null,null,null,null,"","",""]
[null,null,null,null,"","",""]
[null,null,null,null,"","",""]
[null,null,null,null,"","",""]
[null,null,null,null,"","",""]
[null,null,null,null,"","",""]
[null,null,null,null,"","",""]
[null,null,null,null,"","",""]
[null,null,null,null,"","",""]
[null,null,null,null,"","",""]
[null,null,null,null,"","",""]
[null,null,null,null,"","",""]
[null,null,null,null,"","",""]
[null,null,null,null,"","",""]
[null,null,null,null,"","",""]
[null,null,null,null,"","",""]
[null,null,null,null,"","",""]
[null,null,null,null,"","",""]
[null,null,null,null,"","",""]
[null,null,null,null,"","",""]
[null,null,null,null,"","",""]
[null,null,null,null,"","",""]
[null,null,null,null,"","",""]
[null,null,null,null,"","",""]
[null,null,null,null,"","",""]
[null,null,null,null,"","",""]
[null,null,null,null,"","",""]
[null,null,null,null,"","",""]
[null,null,null,null,"","",""]
[null,null,null,null,"","",""]
[null,null,null,null,"","",""]
[null,null,null,null,"","",""]
[null,null,null,null,"","",""]
[null,null,null,null,"","",""]
[null,null,null,null,"","",""]
[null,null,null,null,"","",""]
[null,null,null,null,"","",""]
[null,null,null,null,"","",""]
[null,null,null,null,"","",""]
[null,null,null,null,"","",""]
[null,null,null,null,"","",""]
[null,null,null,null,"","",""]
[null,null,null,null,"","",""]
[null,null,null,null,"","",""]
[null,null,null,null,"","",""]
[null,null,null,null,"","",""]
[null,null,null,null,"","",""]
[null,null,null,null,"","",""]
[null,null,null,null,"","",""]
[null,null,null,null,"","",""]
[null,null,null,null,"","",""]
[null,null,null,null,"","",""]
[null,null,null,null,"","",""]
[null,null,null,null,"","",""]
[null,null,null,null,"","",""]
[null,null,null,null,{"$f":"IF(A40093=\"\",\"\",C40093/B40093*100)","v":""},{"$f":"IF(A40093=\"\",\"\",B40093/D40093)","v":""},{"$f":"IF(A40093=\"\",\"\",C40093/D40093)","v":""}]
[null,null,null,null,"","",""]
[null,null,null,null,"","",""]
[null,null,null,null,"","",""]
[null,null,null,null,"","",""]
[null,null,null,null,"","",""]
[null,null,null,null,"","",""]
[null,null,null,null,"","",""]
[null,null,null,null,"","",""]
[null,null,null,null,"","",""]
[null,null,null,null,"","",""]
[null,null,null,null,"","",""]
[null,null,null,null,"","",""]
[null,null,null,null,"","",""]
[null,null,null,null,"","",""]
[null,null,null,null,"","",""]
[null,null,null,null,"","",""]
[null,null,null,null,"","",""]
[null,null,null,null,"","",""]
[null,null,null,null,"","",""]
[null,null,null,null,"","",""]
[null,null,null,null,"","",""]
[null,null,null,null,"","",""]
[null,null,null,null,"","",""]
[null,null,null,null,"","",""]
[null,null,null,null,"","",""]
[null,null,null,null,"","",""]
[null,null,null,null,"","",""]
[null,null,null,null,"","",""]
[null,null,null,null,"","",""]
[null,null,null,null,"","",""]
[null,null,null,null,"","",""]
[null,null,null,null,"","",""]
[null,null,null,null,"","",""]
[null,null,null,null,"","",""]
[null,null,null,null,"","",""]
[null,null,null,null,"","",""]
[null,null,null,null,"","",""]
[null,null,null,null,"","",""]
[null,null,null,null,"","",""]
[null,null,null,null,"","",""]
[null,null,null,null,"","",""]
[null,null,null,null,"","",""]
[null,null,null,null,{"$f":"IF(A41117=\"\",\"\",C41117/B41117*100)","v":""},{"$f":"IF(A41117=\"\",\"\",B41117/D41117)","v":""},{"$f":"IF(A41117=\"\",\"\",C41117/D41117)","v":""}]
[null,null,null,null,"","",""]
[null,null,null,null,"","",""]
[null,null,null,null,"","",""]
[null,null,null,null,"","",""]
[null,null,null,null,"","",""]
[null,null,null,null,"","",""]
[null,null,null,null,"","",""]
[null,null,null,null,"","",""]
[null,null,null,null,{"$f":"IF(A41309=\"\",\"\",C41309/B41309*100)","v":""},{"$f":"IF(A41309=\"\",\"\",B41309/D41309)","v":""},{"$f":"IF(A41309=\"\",\"\",C41309/D41309)","v":""}]
[null,null,null,null,"","",""]
[null,null,null,null,{"$f":"IF(A41373=\"\",\"\",C41373/B41373*100)","v":""},{"$f":"IF(A41373=\"\",\"\",B41373/D41373)","v":""},{"$f":"IF(A41373=\"\",\"\",C41373/D41373)","v":""}]
[null,null,null,null,"","",""]
[null,null,null,null,"","",""]
[null,null,null,null,"","",""]
[null,null,null,null,"","",""]
[null,null,null,null,"","",""]
[null,null,null,null,"","",""]
[null,null,null,null,"","",""]
[null,null,null,null,"","",""]
[null,null,null,null,"","",""]
[null,null,null,null,"","",""]
[null,null,null,null,"","",""]
[null,null,null,null,"","",""]
[null,null,null,null,"","",""]
[null,null,null,null,"","",""]
[null,null,null,null,"","",""]
[null,null,null,null,"","",""]
[null,null,null,null,"","",""]
[null,null,null,null,"","",""]
[null,null,null,null,"","",""]
[null,null,null,null,"","",""]
[null,null,null,null,"","",""]
[null,null,null,null,"","",""]
[null,null,null,null,"","",""]
[null,null,null,null,"","",""]
[null,null,null,null,"","",""]
[null,null,null,null,"","",""]
[null,null,null,null,"","",""]
[null,null,null,null,"","",""]
[null,null,null,null,"","",""]
[null,null,null,null,"","",""]
[null,null,null,null,"","",""]
[null,null,null,null,"","",""]
[null,null,null,null,"","",""]
[null,null,null,null,"","",""]
[null,null,null,null,"","",""]
[null,null,null,null,"","",""]
[null,null,null,null,"","",""]
[null,null,null,null,"","",""]
[null,null,null,null,"","",""]
[null,null,null,null,"","",""]
[null,null,null,null,"","",""]
[null,null,null,null,"","",""]
[null,null,null,null,"","",""]
[null,null,null,null,"","",""]
[null,null,null,null,"","",""]
[null,null,null,null,"","",""]
[null,null,null,null,"","",""]
[null,null,null,null,"","",""]
[null,null,null,null,"","",""]
[null,null,null,null,"","",""]
[null,null,null,null,"","",""]
[null,null,null,null,"","",""]
[null,null,null,null,"","",""]
[null,null,null,null,"","",""]
[null,null,null,null,"","",""]
[null,null,null,null,"","",""]
[null,null,null,null,"","",""]
[null,null,null,null,"","",""]
[null,null,null,null,"","",""]
[null,null,null,null,"","",""]
[null,null,null,null,"","",""]
[null,null,null,null,"","",""]
[null,null,null,null,"","",""]
[null,null,null,null,"","",""]
[null,null,null,null,"","",""]
[null,null,null,null,"","",""]
[null,null,null,null,"","",""]
[null,null,null,null,"","",""]
[null,null,null,null,"","",""]
[null,null,null,null,"","",""]
[null,null,null,null,"","",""]
[null,null,null,null,"","",""]
[null,null,null,null,"","",""]
[null,null,null,null,"","",""]
[null,null,null,null,"","",""]
[null,null,null,null,"","",""]
[null,null,null,null,"","",""]
[null,null,null,null,"","",""]
[null,null,null,null,"","",""]
[null,null,null,null,"","",""]
[null,null,null,null,"","",""]
[null,null,null,null,"","",""]
[null,null,null,null,"","",""]
[null,null,null,null,"","",""]
[null,null,null,null,"","",""]
[null,null,null,null,"","",""]
[null,null,null,null,"","",""]
[null,null,null,null,"","",""]
[null,null,null,null,"","",""]
[null,null,null,null,"","",""]
[null,null,null,null,"","",""]
[null,null,null,null,"","",""]
[null,null,null,null,"","",""]
[null,null,null,null,"","",""]
[null,null,null,null,"","",""]
[null,null,null,null,"","",""]
[null,null,null,null,"","",""]
[null,null,null,null,"","",""]
[null,null,null,null,"","",""]
[null,null,null,null,"","",""]
[null,null,null,null,"","",""]
[null,null,null,null,"","",""]
[null,null,null,null,"","",""]
[null,null,null,null,"","",""]
[null,null,null,null,"","",""]
[null,null,null,null,"","",""]
[null,null,null,null,"","",""]
[null,null,null,null,"","",""]
[null,null,null,null,"","",""]
[null,null,null,null,"","",""]
[null,null,null,null,"","",""]
[null,null,null,null,"","",""]
[null,null,null,null,"","",""]
[null,null,null,null,"","",""]
[null,null,null,null,"","",""]
[null,null,null,null,"","",""]
[null,null,null,null,"","",""]
[null,null,null,null,"","",""]
[null,null,null,null,"","",""]
[null,null,null,null,"","",""]
[null,null,null,null,"","",""]
[null,null,null,null,"","",""]
[null,null,null,null,"","",""]
[null,null,null,null,"","",""]
[null,null,null,null,"","",""]
[null,null,null,null,"","",""]
[null,null,null,null,"","",""]
[null,null,null,null,"","",""]
[null,null,null,null,"","",""]
[null,null,null,null,"","",""]
[null,null,null,null,"","",""]
[null,null,null,null,"","",""]
[null,null,null,null,"","",""]
[null,null,null,null,"","",""]
[null,null,null,null,"","",""]
[null,null,null,null,"","",""]
[null,null,null,null,"","",""]
[null,null,null,null,"","",""]
[null,null,null,null,"","",""]
[null,null,null,null,"","",""]
[null,null,null,null,"","",""]
[null,null,null,null,"","",""]
[null,null,null,null,"","",""]
[null,null,null,null,"","",""]
[null,null,null,null,"","",""]
[null,null,null,null,"","",""]
[null,null,null,null,"","",""]
[null,null,null,null,"","",""]
[null,null,null,null,"","",""]
[null,null,null,null,"","",""]
[null,null,null,null,"","",""]
[null,null,null,null,"","",""]
[null,null,null,null,"","",""]
[null,null,null,null,"","",""]
[null,null,null,null,"","",""]
[null,null,null,null,"","",""]
[null,null,null,null,"","",""]
[null,null,null,null,"","",""]
[null,null,null,null,"","",""]
[null,null,null,null,"","",""]
[null,null,null,null,"","",""]
[null,null,null,null,"","",""]
[null,null,null,null,"","",""]
[null,null,null,null,"","",""]
[null,null,null,null,"","",""]
[null,null,null,null,"","",""]
[null,null,null,null,"","",""]
[null,null,null,null,"","",""]
[null,null,null,null,"","",""]
[null,null,null,null,"","",""]
[null,null,null,null,"","",""]
[null,null,null,null,"","",""]
[null,null,null,null,"","",""]
[null,null,null,null,"","",""]
[null,null,null,null,"","",""]
[null,null,null,null,"","",""]
[null,null,null,null,"","",""]
[null,null,null,null,"","",""]
[null,null,null,null,"","",""]
[null,null,null,null,"","",""]
[null,null,null,null,{"$f":"IF(A45661=\"\",\"\",C45661/B45661*100)","v":""},{"$f":"IF(A45661=\"\",\"\",B45661/D45661)","v":""},{"$f":"IF(A45661=\"\",\"\",C45661/D45661)","v":""}]
[null,null,null,null,"","",""]
[null,null,null,null,"","",""]
[null,null,null,null,"","",""]
[null,null,null,null,"","",""]
[null,null,null,null,"","",""]
[null,null,null,null,"","",""]
[null,null,null,null,"","",""]
[null,null,null,null,"","",""]
[null,null,null,null,"","",""]
[null,null,null,null,"","",""]
[null,null,null,null,{"$f":"IF(A45917=\"\",\"\",C45917/B45917*100)","v":""},{"$f":"IF(A45917=\"\",\"\",B45917/D45917)","v":""},{"$f":"IF(A45917=\"\",\"\",C45917/D45917)","v":""}]
[null,null,null,null,"","",""]
[null,null,null,null,"","",""]
[null,null,null,null,"","",""]
[null,null,null,null,"","",""]
[null,null,null,null,"","",""]
[null,null,null,null,"","",""]
[null,null,null,null,"","",""]
[null,null,null,null,"","",""]
[null,null,null,null,"","",""]
[null,null,null,null,{"$f":"IF(A46173=\"\",\"\",C46173/B46173*100)","v":""},{"$f":"IF(A46173=\"\",\"\",B46173/D46173)","v":""},{"$f":"IF(A46173=\"\",\"\",C46173/D46173)","v":""}]
[null,null,null,null,"","",""]
[null,null,null,null,"","",""]
[null,null,null,null,"","",""]
[null,null,null,null,"","",""]
[null,null,null,null,"","",""]
[null,null,null,null,"","",""]
[null,null,null,null,"","",""]
[null,null,null,null,"","",""]
[null,null,null,null,"","",""]
[null,null,null,null,"","",""]
[null,null,null,null,"","",""]
[null,null,null,null,"","",""]
[null,null,null,null,"","",""]
[null,null,null,null,"","",""]
[null,null,null,null,"","",""]
[null,null,null,null,"","",""]
[null,null,null,null,"","",""]
[null,null,null,null,"","",""]
[null,null,null,null,"","",""]
[null,null,null,null,"","",""]
[null,null,null,null,"","",""]
[null,null,null,null,"","",""]
[null,null,null,null,"","",""]
[null,null,null,null,"","",""]
[null,null,null,null,"","",""]
[null,null,null,null,"","",""]
[null,null,null,null,"","",""]
[null,null,null,null,"","",""]
[null,null,null,null,"","",""]
[null,null,null,null,"","",""]
[null,null,null,null,"","",""]
[null,null,null,null,"","",""]
[null,null,null,null,"","",""]
[null,null,null,null,"","",""]
[null,null,null,null,"","",""]
[null,null,null,null,"","",""]
[null,null,null,null,"","",""]
[null,null,null,null,"","",""]
[null,null,null,null,"","",""]
[null,null,null,null,"","",""]
[null,null,null,null,"","",""]
[null,null,null,null,"","",""]
[null,null,null,null,"","",""]
[null,null,null,null,"","",""]
[null,null,null,null,"","",""]
[null,null,null,null,"","",""]
[null,null,null,null,"","",""]
[null,null,null,null,"","",""]
[null,null,null,null,"","",""]
[null,null,null,null,"","",""]
[null,null,null,null,"","",""]
[null,null,null,null,"","",""]
[null,null,null,null,"","",""]
[null,null,null,null,"","",""]
[null,null,null,null,"","",""]
[null,null,null,null,"","",""]
[null,null,null,null,"","",""]
[null,null,null,null,"","",""]
[null,null,null,null,"","",""]
[null,null,null,null,"","",""]
[null,null,null,null,"","",""]
[null,null,null,null,"","",""]
[null,null,null,null,"","",""]
[null,null,null,null,"","",""]
[null,null,null,null,"","",""]
[null,null,null,null,"","",""]
[null,null,null,null,"","",""]
[null,null,null,null,"","",""]
[null,null,null,null,"","",""]
[null,null,null,null,"","",""]
[null,null,null,null,"","",""]
[null,null,null,null,"","",""]
[null,null,null,null,"","",""]
[null,null,null,null,"","",""]
[null,null,null,null,"","",""]
[null,null,null,null,"","",""]
[null,null,null,null,"","",""]
[null,null,null,null,"","",""]
[null,null,null,null,"","",""]
[null,null,null,null,"","",""]
[null,null,null,null,"","",""]
[null,null,null,null,"","",""]
[null,null,null,null,"","",""]
[null,null,null,null,"","",""]
[null,null,null,null,"","",""]
[null,null,null,null,"","",""]
[null,null,null,null,"","",""]
[null,null,null,null,"","",""]
[null,null,null,null,"","",""]
[null,null,null,null,"","",""]
[null,null,null,null,"","",""]
[null,null,null,null,"","",""]
[null,null,null,null,"","",""]
[null,null,null,null,"","",""]
[null,null,null,null,"","",""]
[null,null,null,null,"","",""]
[null,null,null,null,"","",""]
[null,null,null,null,"","",""]
[null,null,null,null,"","",""]
[null,null,null,null,"","",""]
[null,null,null,null,"","",""]
[null,null,null,null,"","",""]
[null,null,null,null,"","",""]
[null,null,null,null,"","",""]
[null,null,null,null,"","",""]
[null,null,null,null,"","",""]
[null,null,null,null,"","",""]
[null,null,null,null,"","",""]
[null,null,null,null,"","",""]
[null,null,null,null,"","",""]
[null,null,null,null,"","",""]
[null,null,null,null,"","",""]
[null,null,null,null,"","",""]
[null,null,null,null,"","",""]
[null,null,null,null,"","",""]
[null,null,null,null,"","",""]
[null,null,null,null,"","",""]
[null,null,null,null,"","",""]
[null,null,null,null,"","",""]
[null,null,null,null,"","",""]
[null,null,null,null,"","",""]
[null,null,null,null,"","",""]
[null,null,null,null,"","",""]
[null,null,null,null,"","",""]
[null,null,null,null,"","",""]
[null,null,null,null,"","",""]
[null,null,null,null,"","",""]
[null,null,null,null,"","",""]
[null,null,null,null,"","",""]
[null,null,null,null,"","",""]
[null,null,null,null,"","",""]
[null,null,null,null,"","",""]
[null,null,null,null,"","",""]
[null,null,null,null,"","",""]
[null,null,null,null,"","",""]
[null,null,null,null,"","",""]
[null,null,null,null,"","",""]
[null,null,null,null,"","",""]
[null,null,null,null,"","",""]
[null,null,null,null,"","",""]
[null,null,null,null,"","",""]
[null,null,null,null,"","",""]
[null,null,null,null,"","",""]
[null,null,null,null,"","",""]
[null,null,null,null,"","",""]
[null,null,null,null,"","",""]
[null,null,null,null,"","",""]
[null,null,null,null,"","",""]
[null,null,null,null,"","",""]
[null,null,null,null,"","",""]
[null,null,null,null,"","",""]
[null,null,null,null,"","",""]
[null,null,null,null,"","",""]
[null,null,null,null,"","",""]
[null,null,null,null,"","",""]
[null,null,null,null,"","",""]
[null,null,null,null,"","",""]
[null,null,null,null,"","",""]
[null,null,null,null,"","",""]
[null,null,null,null,"","",""]
[null,null,null,null,"","",""]
[null,null,null,null,"","",""]
[null,null,null,null,"","",""]
[null,null,null,null,"","",""]
[null,null,null,null,"","",""]
[null,null,null,null,"","",""]
[null,null,null,null,"","",""]
[null,null,null,null,"","",""]
[null,null,null,null,"","",""]
[null,null,null,null,"","",""]
[null,null,null,null,"","",""]
[null,null,null,null,"","",""]
[null,null,null,null,"","",""]
[null,null,null,null,"","",""]
[null,null,null,null,"","",""]
[null,null,null,null,"","",""]
[null,null,null,null,"","",""]
[null,null,null,null,"","",""]
[null,null,null,null,"","",""]
[null,null,null,null,"","",""]
[null,null,null,null,"","",""]
[null,null,null,null,"","",""]
[null,null,null,null,"","",""]
[null,null,null,null,"","",""]
[null,null,null,null,"","",""]
[null,null,null,null,"","",""]
[null,null,null,null,"","",""]
[null,null,null,null,"","",""]
[null,null,null,null,"","",""]
[null,null,null,null,"","",""]
[null,null,null,null,"","",""]
[null,null,null,null,"","",""]
[null,null,null,null,"","",""]
[null,null,null,null,"","",""]
[null,null,null,null,"","",""]
[null,null,null,null,"","",""]
[null,null,null,null,"","",""]
[null,null,null,null,"","",""]
[null,null,null,null,"","",""]
[null,null,null,null,"","",""]
[null,null,null,null,"","",""]
[null,null,null,null,"","",""]
[null,null,null,null,"","",""]
[null,null,null,null,{"$f":"IF(A49565=\"\",\"\",C49565/B49565*100)","v":""},{"$f":"IF(A49565=\"\",\"\",B49565/D49565)","v":""},{"$f":"IF(A49565=\"\",\"\",C49565/D49565)","v":""}]
[null,null,null,null,"","",""]
[null,null,null,null,"","",""]
[null,null,null,null,"","",""]
[null,null,null,null,"","",""]
[null,null,null,null,"","",""]
[null,null,null,null,"","",""]
[null,null,null,null,"","",""]
[null,null,null,null,"","",""]
[null,null,null,null,"","",""]
[null,null,null,null,"","",""]
[null,null,null,null,"","",""]
[null,null,null,null,"","",""]
[null,null,null,null,"","",""]
[null,null,null,null,"","",""]
[null,null,null,null,"","",""]
[null,null,null,null,"","",""]
[null,null,null,null,"","",""]
[null,null,null,null,"","",""]
[null,null,null,null,"","",""]
[null,null,null,null,"","",""]
[null,null,null,null,"","",""]
[null,null,null,null,"","",""]
[null,null,null,null,"","",""]
[null,null,null,null,"","",""]
[null,null,null,null,"","",""]
[null,null,null,null,"","",""]
[null,null,null,null,"","",""]
[null,null,null,null,"","",""]
[null,null,null,null,"","",""]
[null,null,null,null,"","",""]
[null,null,null,null,"","",""]
[null,null,null,null,"","",""]
[null,null,null,null,"","",""]
[null,null,null,null,"","",""]
[null,null,null,null,"","",""]
[null,null,null,null,"","",""]
[null,null,null,null,"","",""]
[null,null,null,null,"","",""]
[null,null,null,null,"","",""]
[null,null,null,null,"","",""]
[null,null,null,null,"","",""]
[null,null,null,null,"","",""]
[null,null,null,null,"","",""]
[null,null,null,null,"","",""]
[null,null,null,null,"","",""]
[null,null,null,null,"","",""]
[null,null,null,null,"","",""]
[null,null,null,null,"","",""]
[null,null,null,null,"","",""]
[null,null,null,null,"","",""]
[null,null,null,null,"","",""]
[null,null,null,null,"","",""]
[null,null,null,null,"","",""]
[null,null,null,null,"","",""]
[null,null,null,null,"","",""]
[null,null,null,null,"","",""]
[null,null,null,null,"","",""]
[null,null,null,null,"","",""]
[null,null,null,null,"","",""]
[null,null,null,null,"","",""]
[null,null,null,null,"","",""]
[null,null,null,null,"","",""]
[null,null,null,null,"","",""]
[null,null,null,null,{"$f":"IF(A49629=\"\",\"\",C49629/B49629*100)","v":""},{"$f":"IF(A49629=\"\",\"\",B49629/D49629)","v":""},{"$f":"IF(A49629=\"\",\"\",C49629/D49629)","v":""}]
[null,null,null,null,"","",""]
[null,null,null,null,"","",""]
[null,null,null,null,"","",""]
[null,null,null,null,"","",""]
[null,null,null,null,"","",""]
[null,null,null,null,"","",""]
[null,null,null,null,"","",""]
[null,null,null,null,"","",""]
[null,null,null,null,"","",""]
[null,null,null,null,"","",""]
[null,null,null,null,"","",""]
[null,null,null,null,"","",""]
[null,null,null,null,"","",""]
[null,null,null,null,"","",""]
[null,null,null,null,"","",""]
[null,null,null,null,"","",""]
[null,null,null,null,"","",""]
[null,null,null,null,"","",""]
[null,null,null,null,"","",""]
[null,null,null,null,"","",""]
[null,null,null,null,"","",""]
[null,null,null,null,"","",""]
[null,null,null,null,"","",""]
[null,null,null,null,"","",""]
[null,null,null,null,"","",""]
[null,null,null,null,"","",""]
[null,null,null,null,"","",""]
[null,null,null,null,"","",""]
[null,null,null,null,"","",""]
[null,null,null,null,"","",""]
[null,null,null,null,"","",""]
[null,null,null,null,"","",""]
[null,null,null,null,"","",""]
[null,null,null,null,"","",""]
[null,null,null,null,"","",""]
[null,null,null,null,"","",""]
[null,null,null,null,"","",""]
[null,null,null,null,"","",""]
[null,null,null,null,"","",""]
[null,null,null,null,"","",""]
[null,null,null,null,"","",""]
[null,null,null,null,"","",""]
[null,null,null,null,"","",""]
[null,null,null,null,"","",""]
[null,null,null,null,"","",""]
[null,null,null,null,"","",""]
[null,null,null,null,"","",""]
[null,null,null,null,"","",""]
[null,null,null,null,"","",""]
[null,null,null,null,"","",""]
[null,null,null,null,"","",""]
[null,null,null,null,"","",""]
[null,null,null,null,"","",""]
[null,null,null,null,"","",""]
[null,null,null,null,"","",""]
[null,null,null,null,"","",""]
[null,null,null,null,"","",""]
[null,null,null,null,"","",""]
[null,null,null,null,"","",""]
[null,null,null,null,"","",""]
[null,null,null,null,"","",""]
[null,null,null,null,"","",""]
[null,null,null,null,"","",""]
[null,null,null,null,{"$f":"IF(A49693=\"\",\"\",C49693/B49693*100)","v":""},{"$f":"IF(A49693=\"\",\"\",B49693/D49693)","v":""},{"$f":"IF(A49693=\"\",\"\",C49693/D49693)","v":""}]
[null,null,null,null,"","",""]
[null,null,null,null,"","",""]
[null,null,null,null,"","",""]
[null,null,null,null,"","",""]
[null,null,null,null,"","",""]
[null,null,null,null,"","",""]
[null,null,null,null,"","",""]
[null,null,null,null,"","",""]
[null,null,null,null,"","",""]
[null,null,null,null,"","",""]
[null,null,null,null,"","",""]
[null,null,null,null,"","",""]
[null,null,null,null,"","",""]
[null,null,null,null,"","",""]
[null,null,null,null,"","",""]
[null,null,null,null,"","",""]
[null,null,null,null,"","",""]
[null,null,null,null,"","",""]
[null,null,null,null,"","",""]
[null,null,null,null,"","",""]
[null,null,null,null,"","",""]
[null,null,null,null,"","",""]
[null,null,null,null,"","",""]
[null,null,null,null,"","",""]
[null,null,null,null,"","",""]
[null,null,null,null,"","",""]
[null,null,null,null,"","",""]
[null,null,null,null,"","",""]
[null,null,null,null,"","",""]
[null,null,null,null,"","",""]
[null,null,null,null,"","",""]
[null,null,null,null,"","",""]
[null,null,null,null,"","",""]
[null,null,null,null,"","",""]
[null,null,null,null,"","",""]
[null,null,null,null,"","",""]
[null,null,null,null,"","",""]
[null,null,null,null,"","",""]
[null,null,null,null,"","",""]
[null,null,null,null,"","",""]
[null,null,null,null,"","",""]
[null,null,null,null,"","",""]
[null,null,null,null,"","",""]
[null,null,null,null,"","",""]
[null,null,null,null,"","",""]
[null,null,null,null,"","",""]
[null,null,null,null,"","",""]
[null,null,null,null,"","",""]
[null,null,null,null,"","",""]
[null,null,null,null,"","",""]
[null,null,null,null,"","",""]
[null,null,null,null,"","",""]
[null,null,null,null,"","",""]
[null,null,null,null,"","",""]
[null,null,null,null,"","",""]
[null,null,null,null,"","",""]
[null,null,null,null,"","",""]
[null,null,null,null,"","",""]
[null,null,null,null,"","",""]
[null,null,null,null,"","",""]
[null,null,null,null,"","",""]
[null,null,null,null,"","",""]
[null,null,null,null,"","",""]
[null,null,null,null,{"$f":"IF(A49757=\"\",\"\",C49757/B49757*100)","v":""},{"$f":"IF(A49757=\"\",\"\",B49757/D49757)","v":""},{"$f":"IF(A49757=\"\",\"\",C49757/D49757)","v":""}]
[null,null,null,null,"","",""]
[null,null,null,null,"","",""]
[null,null,null,null,"","",""]
[null,null,null,null,"","",""]
[null,null,null,null,"","",""]
[null,null,null,null,"","",""]
[null,null,null,null,"","",""]
[null,null,null,null,"","",""]
[null,null,null,null,"","",""]
[null,null,null,null,"","",""]
[null,null,null,null,"","",""]
[null,null,null,null,"","",""]
[null,null,null,null,"","",""]
[null,null,null,null,"","",""]
[null,null,null,null,"","",""]
[null,null,null,null,"","",""]
[null,null,null,null,"","",""]
[null,null,null,null,"","",""]
[null,null,null,null,"","",""]
[null,null,null,null,"","",""]
[null,null,null,null,"","",""]
[null,null,null,null,"","",""]
[null,null,null,null,"","",""]
[null,null,null,null,"","",""]
[null,null,null,null,"","",""]
[null,null,null,null,"","",""]
[null,null,null,null,"","",""]
[null,null,null,null,"","",""]
[null,null,null,null,"","",""]
[null,null,null,null,"","",""]
[null,null,null,null,"","",""]
[null,null,null,null,"","",""]
[null,null,null,null,"","",""]
[null,null,null,null,"","",""]
[null,null,null,null,"","",""]
[null,null,null,null,"","",""]
[null,null,null,null,"","",""]
[null,null,null,null,"","",""]
[null,null,null,null,"","",""]
[null,null,null,null,"","",""]
[null,null,null,null,"","",""]
[null,null,null,null,"","",""]
[null,null,null,null,"","",""]
[null,null,null,null,"","",""]
[null,null,null,null,"","",""]
[null,null,null,null,"","",""]
[null,null,null,null,"","",""]
[null,null,null,null,"","",""]
[null,null,null,null,"","",""]
[null,null,null,null,"","",""]
[null,null,null,null,"","",""]
[null,null,null,null,"","",""]
[null,null,null,null,"","",""]
[null,null,null,null,"","",""]
[null,null,null,null,"","",""]
[null,null,null,null,"","",""]
[null,null,null,null,"","",""]
[null,null,null,null,"","",""]
[null,null,null,null,"","",""]
[null,null,null,null,"","",""]
[null,null,null,null,"","",""]
[null,null,null,null,"","",""]
[null,null,null,null,"","",""]
[null,null,null,null,{"$f":"IF(A49821=\"\",\"\",C49821/B49821*100)","v":""},{"$f":"IF(A49821=\"\",\"\",B49821/D49821)","v":""},{"$f":"IF(A49821=\"\",\"\",C49821/D49821)","v":""}]
[null,null,null,null,"","",""]
[null,null,null,null,"","",""]
[null,null,null,null,"","",""]
[null,null,null,null,"","",""]
[null,null,null,null,"","",""]
[null,null,null,null,"","",""]
[null,null,null,null,"","",""]
[null,null,null,null,"","",""]
[null,null,null,null,"","",""]
[null,null,null,null,"","",""]
[null,null,null,null,"","",""]
[null,null,null,null,"","",""]
[null,null,null,null,"","",""]
[null,null,null,null,"","",""]
[null,null,null,null,"","",""]
[null,null,null,null,"","",""]
[null,null,null,null,"","",""]
[null,null,null,null,"","",""]
[null,null,null,null,"","",""]
[null,null,null,null,"","",""]
[null,null,null,null,"","",""]
[null,null,null,null,"","",""]
[null,null,null,null,"","",""]
[null,null,null,null,"","",""]
[null,null,null,null,"","",""]
[null,null,null,null,"","",""]
[null,null,null,null,"","",""]
[null,null,null,null,"","",""]
[null,null,null,null,"","",""]
[null,null,null,null,"","",""]
[null,null,null,null,"","",""]
[null,null,null,null,"","",""]
[null,null,null,null,"","",""]
[null,null,null,null,"","",""]
[null,null,null,null,"","",""]
[null,null,null,null,"","",""]
[null,null,null,null,"","",""]
[null,null,null,null,"","",""]
[null,null,null,null,"","",""]
[null,null,null,null,"","",""]
[null,null,null,null,"","",""]
[null,null,null,null,"","",""]
[null,null,null,null,"","",""]
[null,null,null,null,"","",""]
[null,null,null,null,"","",""]
[null,null,null,null,"","",""]
[null,null,null,null,"","",""]
[null,null,null,null,"","",""]
[null,null,null,null,"","",""]
[null,null,null,null,"","",""]
[null,null,null,null,"","",""]
[null,null,null,null,"","",""]
[null,null,null,null,"","",""]
[null,null,null,null,"","",""]
[null,null,null,null,"","",""]
[null,null,null,null,"","",""]
[null,null,null,null,"","",""]
[null,null,null,null,"","",""]
[null,null,null,null,"","",""]
[null,null,null,null,"","",""]
[null,null,null,null,"","",""]
[null,null,null,null,"","",""]
[null,null,null,null,"","",""]
[null,null,null,null,{"$f":"IF(A49885=\"\",\"\",C49885/B49885*100)","v":""},{"$f":"IF(A49885=\"\",\"\",B49885/D49885)","v":""},{"$f":"IF(A49885=\"\",\"\",C49885/D49885)","v":""}]
[null,null,null,null,"","",""]
[null,null,null,null,"","",""]
[null,null,null,null,"","",""]
[null,null,null,null,"","",""]
[null,null,null,null,"","",""]
[null,null,null,null,"","",""]
[null,null,null,null,"","",""]
[null,null,null,null,"","",""]
[null,null,null,null,"","",""]
[null,null,null,null,"","",""]
[null,null,null,null,"","",""]
[null,null,null,null,"","",""]
[null,null,null,null,"","",""]
[null,null,null,null,"","",""]
[null,null,null,null,"","",""]
[null,null,null,null,"","",""]
[null,null,null,null,"","",""]
[null,null,null,null,"","",""]
[null,null,null,null,"","",""]
[null,null,null,null,"","",""]
[null,null,null,null,"","",""]
[null,null,null,null,"","",""]
[null,null,null,null,"","",""]
[null,null,null,null,"","",""]
[null,null,null,null,"","",""]
[null,null,null,null,"","",""]
[null,null,null,null,"","",""]
[null,null,null,null,"","",""]
[null,null,null,null,"","",""]
[null,null,null,null,"","",""]
[null,null,null,null,"","",""]
[null,null,null,null,"","",""]
[null,null,null,null,"","",""]
[null,null,null,null,"","",""]
[null,null,null,null,"","",""]
[null,null,null,null,"","",""]
[null,null,null,null,"","",""]
[null,null,null,null,"","",""]
[null,null,null,null,"","",""]
[null,null,null,null,"","",""]
[null,null,null,null,"","",""]
[null,null,null,null,"","",""]
[null,null,null,null,"","",""]
[null,null,null,null,"","",""]
[null,null,null,null,"","",""]
[null,null,null,null,"","",""]
[null,null,null,null,"","",""]
[null,null,null,null,"","",""]
[null,null,null,null,"","",""]
[null,null,null,null,"","",""]
[null,null,null,null,"","",""]
[null,null,null,null,"","",""]
[null,null,null,null,"","",""]
[null,null,null,null,"","",""]
[null,null,null,null,"","",""]
[null,null,null,null,"","",""]
[null,null,null,null,"","",""]
[null,null,null,null,"","",""]
[null,null,null,null,"","",""]
[null,null,null,null,"","",""]
[null,null,null,null,"","",""]
[null,null,null,null,"","",""]
[null,null,null,null,"","",""]
[null,null,null,null,{"$f":"IF(A49949=\"\",\"\",C49949/B49949*100)","v":""},{"$f":"IF(A49949=\"\",\"\",B49949/D49949)","v":""},{"$f":"IF(A49949=\"\",\"\",C49949/D49949)","v":""}]
[null,null,null,null,"","",""]
[null,null,null,null,"","",""]
[null,null,null,null,"","",""]
[null,null,null,null,"","",""]
[null,null,null,null,"","",""]
[null,null,null,null,"","",""]
[null,null,null,null,"","",""]
[null,null,null,null,"","",""]
[null,null,null,null,"","",""]
[null,null,null,null,"","",""]
[null,null,null,null,"","",""]
[null,null,null,null,"","",""]
[null,null,null,null,"","",""]
[null,null,null,null,"","",""]
[null,null,null,null,"","",""]
[null,null,null,null,"","",""]
[null,null,null,null,"","",""]
[null,null,null,null,"","",""]
[null,null,null,null,"","",""]
[null,null,null,null,"","",""]
[null,null,null,null,"","",""]
[null,null,null,null,"","",""]
[null,null,null,null,"","",""]
[null,null,null,null,"","",""]
[null,null,null,null,"","",""]
[null,null,null,null,"","",""]
[null,null,null,null,"","",""]
[null,null,null,null,"","",""]
[null,null,null,null,"","",""]
[null,null,null,null,"","",""]
[null,null,null,null,"","",""]
[null,null,null,null,"","",""]
[null,null,null,null,"","",""]
[null,null,null,null,"","",""]
[null,null,null,null,"","",""]
[null,null,null,null,"","",""]
[null,null,null,null,"","",""]
[null,null,null,null,"","",""]
[null,null,null,null,"","",""]
[null,null,null,null,"","",""]
[null,null,null,null,"","",""]
[null,null,null,null,"","",""]
[null,null,null,null,"","",""]
[null,null,null,null,"","",""]
[null,null,null,null,"","",""]
[null,null,null,null,"","",""]
[null,null,null,null,"","",""]
[null,null,null,null,"","",""]
[null,null,null,null,"","",""]
[null,null,null,null,"","",""]
[null,null,null,null,"","",""]
[null,null,null,null,"","",""]

{"sheet":"Диаграмма все мсп","index":4,"n_rows":0,"n_cols":0,"rows_kept":0,"cut":false,"hidden":true,"merged":[]}

{"sheet":"Районы","index":5,"n_rows":46,"n_cols":2,"rows_kept":46,"cut":false,"hidden":true,"merged":[]}
["Наименование МО"]
["Агрызский муниципальный район","Сельское хозяйство"]
["Азнакаевский муниципальный район","Добыча полезных ископаемых"]
["Аксубаевский муниципальный район","Обрабатывающие производства"]
["Актанышский муниципальный район","Обеспечение электрической энергией, газом и паром; забор и очистка воды"]
["Алексеевский муниципальный район","Строительство"]
["Алькеевский муниципальный район","Оптовая и розничная торговля"]
["Альметьевский муниципальный район","Гостиницы и рестораны"]
["Апастовский муниципальный район","Транспорт и связь"]
["Арский муниципальный район","Финансовая деятельность"]
["Атнинский муниципальный район","Операции с недвижимым имуществом, аренда и предоставление услуг"]
["Бавлинский муниципальный район","Образование"]
["Балтасинский муниципальный район","Здравоохранение и предоставление социальных услуг"]
["Бугульминский муниципальный район","Предоставление прочих коммунальных, социальных и персональных услуг"]
["Буинский муниципальный район","Прочие отрасли"]
["Верхнеуслонский муниципальный район"]
["Высокогорский муниципальный район"]
["Дрожжановский муниципальный район"]
["Елабужский муниципальный район"]
["Заинский муниципальный район"]
["Зеленодольский муниципальный район"]
["Кайбицкий муниципальный район"]
["Камско-Устьинский муниципальный район"]
["Кукморский муниципальный район"]
["Лаишевский муниципальный район"]
["Лениногорский муниципальный район"]
["Мамадышский муниципальный район"]
["Менделевский муниципальный район"]
["Мензелинский муниципальный район"]
["Муслюмовский муниципальный район"]
["Нижнекамский муниципальный район"]
["Новошешминский муниципальный район"]
["Нурлатский муниципальный район"]
["Пестречинский муниципальный район"]
["Рыбно-Слободский муниципальный район"]
["Сабинский муниципальный район"]
["Сармановский муниципальный район"]
["Спасский муниципальный район"]
["Тетюшский муниципальный район"]
["Тукаевский муниципальный район"]
["Тюлячинский муниципальный район"]
["Черемшанский муниципальный район"]
["Чистопольский муниципальный район"]
["Ютазинский муниципальный район"]
["город Казань"]
["город Набережные Челны"]